Workbook

Sheet Calculator
B1: Indexval från listor. Input till kod | F1: Lbox 6 | G1: LBox 7 | H1: LBox 8 | K1: Vald produkt | N1: Fi | O1: Fs | P1: Fylltryck
B2: val1 | C2: val2 | D2: val3 | F2: TU | G2: 250 | H2: 10 | K2: TU | L2: 250 | M2: 10 | N2: 2650 | O2: 3500 | P2: 150
B3: 1 | C3: 1 | D3: 1 | F3: X | G3: 500 | H3: 12.7 | K3: Kolumn 7 Ska vara StrCode
F4: TX | G4: 750 | H4: 16 | K4: TU 250-10
B5: Lbox 9 Varumärke | F5: R19 | G5: 1500 | H5: 25 | K5: =FIND("-",K4) -> 7
B6: KALLER | C6: 1 | D6: Index | F6: M2 | G6: 3000 | H6: 38.1 | K6: =LEFT(K4,K5-1) -> TU 250
B7: FORD | F7: MC3 | G7: 5000 | H7: 50
B8: GM | F8: CU4 | G8: 7500 | H8: 63.5
B9: tblKaller | F9: CX | G9: 10000 | H9: 80 | K9: Hämtat från temperaturbladet
F10: K | H10: 100 | K10: =VLOOKUP($K$6,Tempdatabladet!$A$1:$AD$167,16,0) -> 22.64752992 | N10: =IF(ISERROR(K10),"Temperature data not available","") -> 
F11: LCF | H11: 125 | K11: =IF(ISERROR(K10),"No data",K10) -> 22.64752992 | L11: om no data | N11: Felmeddelande om tempdata saknas
F12: XG
F13: R12
F14: R15
F15: TL | K15: =VLOOKUP($K$6,Tempdatabladet!$A$1:$AD$167,17,0) -> 32.64752992
F16: TUS | K16: =IF(ISERROR(K15),"No data",K15) -> 32.64752992 | L16: om no data | U16: Number of gas Springs | X16: 1 | Y16: pcs
F17: TUR | U17: Filling Pressure | X17: 150 | Y17: ='Unit conv'!B18 -> bar | Z17: =CONCATENATE("Maximum filling pressure is ",P2*FLOOR('Unit conv'!B17,0.01)," ",'Unit conv'!B18) -> Maximum filling pressure is 150 bar | AC17: =IF(X17>P2*'Unit conv'!B17,"Filling Pressure to High!","") -> 
F18: XF | U18: Used Stroke | X18: 10 | Y18: mm | Z18: =Fjäderkurva!D51 -> 
U19: Frequency | X19: 20 | Y19: spm
U20: Surrounding Temperature | X20: 20 | Y20: °C
L21: Grönmarkerade rutor är ej skyddade för att makrot ska skunna skriva där
L22: User data fält och cell med email länk är upplåst
U23: =CONCATENATE("Total force of ",X16," gas spring",IF(X16>1,"s","")," in ",AA42) -> Total force of 1 gas spring in kN
U24: =CONCATENATE("Selected spring: KALLER ",K6," with stroke length of ",M2," mm") -> Selected spring: KALLER TU 250 with stroke length of 10 mm | AD24: Temp °C
V27: =AB46-Z46 -> 10
V29: =80-AB46 -> 47.35247008
V30: 20
V32: =Z46 -> 22.64752992
V33: =V32-X20 -> 2.647529921 | W33: min över rum
U41: =Fjäderkurva!AH10 -> Isothermal force at estimated running temperature
U42: INITIAL FORCE | Z42: =Fjäderkurva!D46 -> 2.719167079 | AA42: ='Unit conv'!B24 -> kN
U44: FINAL FORCE | Z44: =Fjäderkurva!D48 -> 3.591352746 | AA44: ='Unit conv'!B24 -> kN
U46: ESTIMATED RUNNING TEMPERATURE BETWEEN: | Z46: =K11 -> 22.64752992 | AB46: =K16 -> 32.64752992 | AC46: [°C]
AB47: =IFERROR(IF(K15>80,"High temp. Please contact your distributor for advice.",""),"") -> 
AB48: =N10 -> 
U50: IMPORTANT:
U60: Please send feeback and comments to: | Y60: info@kaller.com

Sheet Kaller (hidden)
A1: Detta är värden ur katalog/MC | D1: Serie | E1: Modell | F1: Slagl | G1: Fi | H1: Fs | I1: Tryck | J1: StrCode
D2: TU | E2: 250 | F2: 10 | G2: 2650 | H2: 3500 | I2: 150 | J2: TU 250-10
D3: TU | E3: 250 | F3: 12.7 | G3: 2650 | H3: 3500 | I3: 150 | J3: TU 250-12,7
D4: TU | E4: 250 | F4: 16 | G4: 2650 | H4: 3500 | I4: 150 | J4: TU 250-16 | M4: Not:
D5: TU | E5: 250 | F5: 25 | G5: 2650 | H5: 3500 | I5: 150 | J5: TU 250-25 | M5: 2017-01-11 | N5: CU4, CX, K, LCF, XG, R12, R15, TL, TUS, TUR inlagda
D6: TU | E6: 250 | F6: 38.1 | G6: 2650 | H6: 3500 | I6: 150 | J6: TU 250-38,1
D7: TU | E7: 250 | F7: 50 | G7: 2650 | H7: 3500 | I7: 150 | J7: TU 250-50
D8: TU | E8: 250 | F8: 63.5 | G8: 2650 | H8: 3500 | I8: 150 | J8: TU 250-63,5
D9: TU | E9: 250 | F9: 80 | G9: 2650 | H9: 3500 | I9: 150 | J9: TU 250-80
D10: TU | E10: 250 | F10: 100 | G10: 2650 | H10: 3500 | I10: 150 | J10: TU 250-100
D11: TU | E11: 250 | F11: 125 | G11: 2650 | H11: 3500 | I11: 150 | J11: TU 250-125
D12: TU | E12: 500 | F12: 10 | G12: 4700 | H12: 6000 | I12: 150 | J12: TU 500-10
D13: TU | E13: 500 | F13: 12.7 | G13: 4700 | H13: 6100 | I13: 150 | J13: TU 500-12,7
D14: TU | E14: 500 | F14: 25 | G14: 4700 | H14: 6400 | I14: 150 | J14: TU 500-25
D15: TU | E15: 500 | F15: 38.1 | G15: 4700 | H15: 6500 | I15: 150 | J15: TU 500-38,1
D16: TU | E16: 500 | F16: 50 | G16: 4700 | H16: 6600 | I16: 150 | J16: TU 500-50
D17: TU | E17: 500 | F17: 63.5 | G17: 4700 | H17: 6600 | I17: 150 | J17: TU 500-63,5
D18: TU | E18: 500 | F18: 80 | G18: 4700 | H18: 6700 | I18: 150 | J18: TU 500-80
D19: TU | E19: 500 | F19: 100 | G19: 4700 | H19: 6700 | I19: 150 | J19: TU 500-100
D20: TU | E20: 500 | F20: 125 | G20: 4700 | H20: 6700 | I20: 150 | J20: TU 500-125
D21: TU | E21: 500 | F21: 160 | G21: 4700 | H21: 6700 | I21: 150 | J21: TU 500-160
D22: TU | E22: 750 | F22: 12.7 | G22: 7400 | H22: 12000 | I22: 150 | J22: TU 750-12,7
D23: TU | E23: 750 | F23: 25 | G23: 7400 | H23: 12000 | I23: 150 | J23: TU 750-25
D24: TU | E24: 750 | F24: 38.1 | G24: 7400 | H24: 12000 | I24: 150 | J24: TU 750-38,1
D25: TU | E25: 750 | F25: 50 | G25: 7400 | H25: 12000 | I25: 150 | J25: TU 750-50
D26: TU | E26: 750 | F26: 63.5 | G26: 7400 | H26: 12000 | I26: 150 | J26: TU 750-63,5
D27: TU | E27: 750 | F27: 80 | G27: 7400 | H27: 12000 | I27: 150 | J27: TU 750-80
D28: TU | E28: 750 | F28: 100 | G28: 7400 | H28: 12000 | I28: 150 | J28: TU 750-100
D29: TU | E29: 750 | F29: 125 | G29: 7400 | H29: 12100 | I29: 150 | J29: TU 750-125
D30: TU | E30: 750 | F30: 160 | G30: 7400 | H30: 12100 | I30: 150 | J30: TU 750-160
D31: TU | E31: 750 | F31: 200 | G31: 7400 | H31: 12100 | I31: 150 | J31: TU 750-200
D32: TU | E32: 750 | F32: 250 | G32: 7400 | H32: 12100 | I32: 150 | J32: TU 750-250
D33: TU | E33: 750 | F33: 300 | G33: 7400 | H33: 12100 | I33: 150 | J33: TU 750-300
D34: TU | E34: 1500 | F34: 25 | G34: 15000 | H34: 23000 | I34: 150 | J34: TU 1500-25
D35: TU | E35: 1500 | F35: 38.1 | G35: 15000 | H35: 23000 | I35: 150 | J35: TU 1500-38,1
D36: TU | E36: 1500 | F36: 50 | G36: 15000 | H36: 23000 | I36: 150 | J36: TU 1500-50
D37: TU | E37: 1500 | F37: 63.5 | G37: 15000 | H37: 23000 | I37: 150 | J37: TU 1500-63,5
D38: TU | E38: 1500 | F38: 80 | G38: 15000 | H38: 23000 | I38: 150 | J38: TU 1500-80
D39: TU | E39: 1500 | F39: 100 | G39: 15000 | H39: 23000 | I39: 150 | J39: TU 1500-100
D40: TU | E40: 1500 | F40: 125 | G40: 15000 | H40: 23000 | I40: 150 | J40: TU 1500-125
D41: TU | E41: 1500 | F41: 160 | G41: 15000 | H41: 23000 | I41: 150 | J41: TU 1500-160
D42: TU | E42: 1500 | F42: 200 | G42: 15000 | H42: 23000 | I42: 150 | J42: TU 1500-200
D43: TU | E43: 1500 | F43: 250 | G43: 15000 | H43: 23000 | I43: 150 | J43: TU 1500-250
D44: TU | E44: 1500 | F44: 300 | G44: 15000 | H44: 23000 | I44: 150 | J44: TU 1500-300
D45: TU | E45: 3000 | F45: 25 | G45: 30000 | H45: 42000 | I45: 150 | J45: TU 3000-25
D46: TU | E46: 3000 | F46: 38.1 | G46: 30000 | H46: 43000 | I46: 150 | J46: TU 3000-38,1
D47: TU | E47: 3000 | F47: 50 | G47: 30000 | H47: 44000 | I47: 150 | J47: TU 3000-50
D48: TU | E48: 3000 | F48: 63.5 | G48: 30000 | H48: 45000 | I48: 150 | J48: TU 3000-63,5
D49: TU | E49: 3000 | F49: 80 | G49: 30000 | H49: 46000 | I49: 150 | J49: TU 3000-80
D50: TU | E50: 3000 | F50: 100 | G50: 30000 | H50: 47000 | I50: 150 | J50: TU 3000-100
D51: TU | E51: 3000 | F51: 125 | G51: 30000 | H51: 47000 | I51: 150 | J51: TU 3000-125
D52: TU | E52: 3000 | F52: 160 | G52: 30000 | H52: 47000 | I52: 150 | J52: TU 3000-160
D53: TU | E53: 3000 | F53: 200 | G53: 30000 | H53: 48000 | I53: 150 | J53: TU 3000-200
D54: TU | E54: 3000 | F54: 250 | G54: 30000 | H54: 48000 | I54: 150 | J54: TU 3000-250
D55: TU | E55: 3000 | F55: 300 | G55: 30000 | H55: 48000 | I55: 150 | J55: TU 3000-300
D56: TU | E56: 5000 | F56: 25 | G56: 50000 | H56: 71000 | I56: 150 | J56: TU 5000-25
D57: TU | E57: 5000 | F57: 38.1 | G57: 50000 | H57: 75000 | I57: 150 | J57: TU 5000-38,1
D58: TU | E58: 5000 | F58: 50 | G58: 50000 | H58: 77000 | I58: 150 | J58: TU 5000-50
D59: TU | E59: 5000 | F59: 63.5 | G59: 50000 | H59: 80000 | I59: 150 | J59: TU 5000-63,5
D60: TU | E60: 5000 | F60: 80 | G60: 50000 | H60: 81000 | I60: 150 | J60: TU 5000-80
D61: TU | E61: 5000 | F61: 100 | G61: 50000 | H61: 82000 | I61: 150 | J61: TU 5000-100
D62: TU | E62: 5000 | F62: 125 | G62: 50000 | H62: 82000 | I62: 150 | J62: TU 5000-125
D63: TU | E63: 5000 | F63: 160 | G63: 50000 | H63: 83000 | I63: 150 | J63: TU 5000-160
D64: TU | E64: 5000 | F64: 200 | G64: 50000 | H64: 84000 | I64: 150 | J64: TU 5000-200
D65: TU | E65: 5000 | F65: 250 | G65: 50000 | H65: 84000 | I65: 150 | J65: TU 5000-250
D66: TU | E66: 5000 | F66: 300 | G66: 50000 | H66: 84000 | I66: 150 | J66: TU 5000-300
D67: TU | E67: 7500 | F67: 25 | G67: 75000 | H67: 105000 | I67: 150 | J67: TU 7500-25
D68: TU | E68: 7500 | F68: 38.1 | G68: 75000 | H68: 110000 | I68: 150 | J68: TU 7500-38,1
D69: TU | E69: 7500 | F69: 50 | G69: 75000 | H69: 113000 | I69: 150 | J69: TU 7500-50
D70: TU | E70: 7500 | F70: 63.5 | G70: 75000 | H70: 115000 | I70: 150 | J70: TU 7500-63,5
D71: TU | E71: 7500 | F71: 80 | G71: 75000 | H71: 117000 | I71: 150 | J71: TU 7500-80
D72: TU | E72: 7500 | F72: 100 | G72: 75000 | H72: 119000 | I72: 150 | J72: TU 7500-100
D73: TU | E73: 7500 | F73: 125 | G73: 75000 | H73: 121000 | I73: 150 | J73: TU 7500-125
D74: TU | E74: 7500 | F74: 160 | G74: 75000 | H74: 122000 | I74: 150 | J74: TU 7500-160
D75: TU | E75: 7500 | F75: 200 | G75: 75000 | H75: 123000 | I75: 150 | J75: TU 7500-200
D76: TU | E76: 7500 | F76: 250 | G76: 75000 | H76: 124000 | I76: 150 | J76: TU 7500-250
D77: TU | E77: 7500 | F77: 300 | G77: 75000 | H77: 124000 | I77: 150 | J77: TU 7500-300
D78: TU | E78: 10000 | F78: 25 | G78: 106000 | H78: 138000 | I78: 150 | J78: TU 10000-25
D79: TU | E79: 10000 | F79: 38.1 | G79: 106000 | H79: 143000 | I79: 150 | J79: TU 10000-38,1
D80: TU | E80: 10000 | F80: 50 | G80: 106000 | H80: 147000 | I80: 150 | J80: TU 10000-50
D81: TU | E81: 10000 | F81: 63.5 | G81: 106000 | H81: 150000 | I81: 150 | J81: TU 10000-63,5
D82: TU | E82: 10000 | F82: 80 | G82: 106000 | H82: 152000 | I82: 150 | J82: TU 10000-80
D83: TU | E83: 10000 | F83: 100 | G83: 106000 | H83: 156000 | I83: 150 | J83: TU 10000-100
D84: TU | E84: 10000 | F84: 125 | G84: 106000 | H84: 157000 | I84: 150 | J84: TU 10000-125
D85: TU | E85: 10000 | F85: 160 | G85: 106000 | H85: 158000 | I85: 150 | J85: TU 10000-160
D86: TU | E86: 10000 | F86: 200 | G86: 106000 | H86: 160000 | I86: 150 | J86: TU 10000-200
D87: TU | E87: 10000 | F87: 250 | G87: 106000 | H87: 160000 | I87: 150 | J87: TU 10000-250
D88: TU | E88: 10000 | F88: 300 | G88: 106000 | H88: 160000 | I88: 150 | J88: TU 10000-300
D89: X | E89: 170 | F89: 7 | G89: 1700 | H89: 2800 | I89: 180 | J89: X 170-7
D90: X | E90: 170 | F90: 10 | G90: 1700 | H90: 2800 | I90: 180 | J90: X 170-10
D91: X | E91: 170 | F91: 15 | G91: 1700 | H91: 2800 | I91: 180 | J91: X 170-15
D92: X | E92: 170 | F92: 19 | G92: 1700 | H92: 2800 | I92: 180 | J92: X 170-19
D93: X | E93: 170 | F93: 25 | G93: 1700 | H93: 2800 | I93: 180 | J93: X 170-25
D94: X | E94: 170 | F94: 38 | G94: 1700 | H94: 2800 | I94: 180 | J94: X 170-38
D95: X | E95: 170 | F95: 50 | G95: 1700 | H95: 2800 | I95: 180 | J95: X 170-50
D96: X | E96: 170 | F96: 63 | G96: 1700 | H96: 2800 | I96: 180 | J96: X 170-63
D97: X | E97: 170 | F97: 75 | G97: 1700 | H97: 2800 | I97: 180 | J97: X 170-75
D98: X | E98: 170 | F98: 80 | G98: 1700 | H98: 2800 | I98: 180 | J98: X 170-80
D99: X | E99: 170 | F99: 100 | G99: 1700 | H99: 2800 | I99: 180 | J99: X 170-100
D100: X | E100: 170 | F100: 125 | G100: 1700 | H100: 2800 | I100: 180 | J100: X 170-125
D101: X | E101: 320 | F101: 7 | G101: 3200 | H101: 4800 | I101: 180 | J101: X 320-7
D102: X | E102: 320 | F102: 10 | G102: 3200 | H102: 4900 | I102: 180 | J102: X 320-10
D103: X | E103: 320 | F103: 15 | G103: 3200 | H103: 5100 | I103: 180 | J103: X 320-15
D104: X | E104: 320 | F104: 19 | G104: 3200 | H104: 5100 | I104: 180 | J104: X 320-19
D105: X | E105: 320 | F105: 25 | G105: 3200 | H105: 5200 | I105: 180 | J105: X 320-25
D106: X | E106: 320 | F106: 38 | G106: 3200 | H106: 5300 | I106: 180 | J106: X 320-38
D107: X | E107: 320 | F107: 50 | G107: 3200 | H107: 5300 | I107: 180 | J107: X 320-50
D108: X | E108: 320 | F108: 63 | G108: 3200 | H108: 5300 | I108: 180 | J108: X 320-63
D109: X | E109: 320 | F109: 75 | G109: 3200 | H109: 5300 | I109: 180 | J109: X 320-75
D110: X | E110: 320 | F110: 80 | G110: 3200 | H110: 5300 | I110: 180 | J110: X 320-80
D111: X | E111: 320 | F111: 100 | G111: 3200 | H111: 5300 | I111: 180 | J111: X 320-100
D112: X | E112: 320 | F112: 125 | G112: 3200 | H112: 5300 | I112: 180 | J112: X 320-125
D113: X | E113: 350 | F113: 10 | G113: 3600 | H113: 5900 | I113: 180 | J113: X 350-10
D114: X | E114: 350 | F114: 13 | G114: 3600 | H114: 5200 | I114: 180 | J114: X 350-13
D115: X | E115: 350 | F115: 16 | G115: 3600 | H115: 5300 | I115: 180 | J115: X 350-16
D116: X | E116: 350 | F116: 19 | G116: 3600 | H116: 5600 | I116: 180 | J116: X 350-19
D117: X | E117: 350 | F117: 25 | G117: 3600 | H117: 5500 | I117: 180 | J117: X 350-25
D118: X | E118: 350 | F118: 32 | G118: 3600 | H118: 5500 | I118: 180 | J118: X 350-32
D119: X | E119: 350 | F119: 38 | G119: 3600 | H119: 5500 | I119: 180 | J119: X 350-38
D120: X | E120: 350 | F120: 50 | G120: 3600 | H120: 5600 | I120: 180 | J120: X 350-50
D121: X | E121: 350 | F121: 63 | G121: 3600 | H121: 5500 | I121: 180 | J121: X 350-63
D122: X | E122: 350 | F122: 75 | G122: 3600 | H122: 5500 | I122: 180 | J122: X 350-75
D123: X | E123: 350 | F123: 80 | G123: 3600 | H123: 5500 | I123: 180 | J123: X 350-80
D124: X | E124: 350 | F124: 100 | G124: 3600 | H124: 5500 | I124: 180 | J124: X 350-100
D125: X | E125: 350 | F125: 125 | G125: 3600 | H125: 5500 | I125: 180 | J125: X 350-125
D126: X | E126: 500 | F126: 10 | G126: 4700 | H126: 7200 | I126: 150 | J126: X 500-10
D127: X | E127: 500 | F127: 13 | G127: 4700 | H127: 7100 | I127: 150 | J127: X 500-13
D128: X | E128: 500 | F128: 16 | G128: 4700 | H128: 7200 | I128: 150 | J128: X 500-16
D129: X | E129: 500 | F129: 19 | G129: 4700 | H129: 7400 | I129: 150 | J129: X 500-19
D130: X | E130: 500 | F130: 25 | G130: 4700 | H130: 7300 | I130: 150 | J130: X 500-25
D131: X | E131: 500 | F131: 32 | G131: 4700 | H131: 7200 | I131: 150 | J131: X 500-32
D132: X | E132: 500 | F132: 38 | G132: 4700 | H132: 7200 | I132: 150 | J132: X 500-38
D133: X | E133: 500 | F133: 50 | G133: 4700 | H133: 7200 | I133: 150 | J133: X 500-50
D134: X | E134: 500 | F134: 63 | G134: 4700 | H134: 7200 | I134: 150 | J134: X 500-63
D135: X | E135: 500 | F135: 75 | G135: 4700 | H135: 7100 | I135: 150 | J135: X 500-75
D136: X | E136: 500 | F136: 80 | G136: 4700 | H136: 7100 | I136: 150 | J136: X 500-80
D137: X | E137: 500 | F137: 100 | G137: 4700 | H137: 7100 | I137: 150 | J137: X 500-100
D138: X | E138: 500 | F138: 125 | G138: 4700 | H138: 7100 | I138: 150 | J138: X 500-125
D139: X | E139: 750 | F139: 10 | G139: 7400 | H139: 12100 | I139: 150 | J139: X 750-10
D140: X | E140: 750 | F140: 13 | G140: 7400 | H140: 12100 | I140: 150 | J140: X 750-13
D141: X | E141: 750 | F141: 16 | G141: 7400 | H141: 12100 | I141: 150 | J141: X 750-16
D142: X | E142: 750 | F142: 19 | G142: 7400 | H142: 11700 | I142: 150 | J142: X 750-19
D143: X | E143: 750 | F143: 25 | G143: 7400 | H143: 11800 | I143: 150 | J143: X 750-25
D144: X | E144: 750 | F144: 32 | G144: 7400 | H144: 11800 | I144: 150 | J144: X 750-32
D145: X | E145: 750 | F145: 38 | G145: 7400 | H145: 11800 | I145: 150 | J145: X 750-38
D146: X | E146: 750 | F146: 50 | G146: 7400 | H146: 11800 | I146: 150 | J146: X 750-50
D147: X | E147: 750 | F147: 63 | G147: 7400 | H147: 11800 | I147: 150 | J147: X 750-63
D148: X | E148: 750 | F148: 75 | G148: 7400 | H148: 11900 | I148: 150 | J148: X 750-75
D149: X | E149: 750 | F149: 80 | G149: 7400 | H149: 11900 | I149: 150 | J149: X 750-80
D150: X | E150: 750 | F150: 100 | G150: 7400 | H150: 11900 | I150: 150 | J150: X 750-100
D151: X | E151: 750 | F151: 125 | G151: 7400 | H151: 11900 | I151: 150 | J151: X 750-125
D152: X | E152: 1000 | F152: 13 | G152: 9200 | H152: 13800 | I152: 150 | J152: X 1000-13
D153: X | E153: 1000 | F153: 16 | G153: 9200 | H153: 13800 | I153: 150 | J153: X 1000-16
D154: X | E154: 1000 | F154: 19 | G154: 9200 | H154: 14000 | I154: 150 | J154: X 1000-19
D155: X | E155: 1000 | F155: 25 | G155: 9200 | H155: 14200 | I155: 150 | J155: X 1000-25
D156: X | E156: 1000 | F156: 32 | G156: 9200 | H156: 14300 | I156: 150 | J156: X 1000-32
D157: X | E157: 1000 | F157: 38 | G157: 9200 | H157: 14500 | I157: 150 | J157: X 1000-38
D158: X | E158: 1000 | F158: 50 | G158: 9200 | H158: 14600 | I158: 150 | J158: X 1000-50
D159: X | E159: 1000 | F159: 63 | G159: 9200 | H159: 14700 | I159: 150 | J159: X 1000-63
D160: X | E160: 1000 | F160: 75 | G160: 9200 | H160: 14700 | I160: 150 | J160: X 1000-75
D161: X | E161: 1000 | F161: 80 | G161: 9200 | H161: 14800 | I161: 150 | J161: X 1000-80
D162: X | E162: 1000 | F162: 100 | G162: 9200 | H162: 14800 | I162: 150 | J162: X 1000-100
D163: X | E163: 1000 | F163: 125 | G163: 9200 | H163: 14800 | I163: 150 | J163: X 1000-125
D164: X | E164: 1500 | F164: 13 | G164: 15000 | H164: 24000 | I164: 150 | J164: X 1500-13
D165: X | E165: 1500 | F165: 16 | G165: 15000 | H165: 24100 | I165: 150 | J165: X 1500-16
D166: X | E166: 1500 | F166: 19 | G166: 15000 | H166: 24200 | I166: 150 | J166: X 1500-19
D167: X | E167: 1500 | F167: 25 | G167: 15000 | H167: 24300 | I167: 150 | J167: X 1500-25
D168: X | E168: 1500 | F168: 32 | G168: 15000 | H168: 23800 | I168: 150 | J168: X 1500-32
D169: X | E169: 1500 | F169: 38 | G169: 15000 | H169: 23900 | I169: 150 | J169: X 1500-38
D170: X | E170: 1500 | F170: 50 | G170: 15000 | H170: 24000 | I170: 150 | J170: X 1500-50
D171: X | E171: 1500 | F171: 63 | G171: 15000 | H171: 24100 | I171: 150 | J171: X 1500-63
D172: X | E172: 1500 | F172: 75 | G172: 15000 | H172: 24200 | I172: 150 | J172: X 1500-75
D173: X | E173: 1500 | F173: 80 | G173: 15000 | H173: 24200 | I173: 150 | J173: X 1500-80
D174: X | E174: 1500 | F174: 100 | G174: 15000 | H174: 24300 | I174: 150 | J174: X 1500-100
D175: X | E175: 1500 | F175: 125 | G175: 15000 | H175: 24300 | I175: 150 | J175: X 1500-125
D176: X | E176: 2400 | F176: 16 | G176: 24000 | H176: 38300 | I176: 150 | J176: X 2400-16
D177: X | E177: 2400 | F177: 19 | G177: 24000 | H177: 38500 | I177: 150 | J177: X 2400-19
D178: X | E178: 2400 | F178: 25 | G178: 24000 | H178: 38700 | I178: 150 | J178: X 2400-25
D179: X | E179: 2400 | F179: 32 | G179: 24000 | H179: 38600 | I179: 150 | J179: X 2400-32
D180: X | E180: 2400 | F180: 38 | G180: 24000 | H180: 38400 | I180: 150 | J180: X 2400-38
D181: X | E181: 2400 | F181: 50 | G181: 24000 | H181: 39200 | I181: 150 | J181: X 2400-50
D182: X | E182: 2400 | F182: 63 | G182: 24000 | H182: 39200 | I182: 150 | J182: X 2400-63
D183: X | E183: 2400 | F183: 75 | G183: 24000 | H183: 39200 | I183: 150 | J183: X 2400-75
D184: X | E184: 2400 | F184: 80 | G184: 24000 | H184: 39200 | I184: 150 | J184: X 2400-80
D185: X | E185: 2400 | F185: 100 | G185: 24000 | H185: 39300 | I185: 150 | J185: X 2400-100
D186: X | E186: 2400 | F186: 125 | G186: 24000 | H186: 39300 | I186: 150 | J186: X 2400-125
D187: X | E187: 4200 | F187: 16 | G187: 42000 | H187: 61700 | I187: 150 | J187: X 4200-16
D188: X | E188: 4200 | F188: 19 | G188: 42000 | H188: 63700 | I188: 150 | J188: X 4200-19
D189: X | E189: 4200 | F189: 25 | G189: 42000 | H189: 60800 | I189: 150 | J189: X 4200-25
D190: X | E190: 4200 | F190: 32 | G190: 42000 | H190: 64300 | I190: 150 | J190: X 4200-32
D191: X | E191: 4200 | F191: 38 | G191: 42000 | H191: 65800 | I191: 150 | J191: X 4200-38
D192: X | E192: 4200 | F192: 50 | G192: 42000 | H192: 67000 | I192: 150 | J192: X 4200-50
D193: X | E193: 4200 | F193: 63 | G193: 42000 | H193: 67800 | I193: 150 | J193: X 4200-63
D194: X | E194: 4200 | F194: 75 | G194: 42000 | H194: 68000 | I194: 150 | J194: X 4200-75
D195: X | E195: 4200 | F195: 80 | G195: 42000 | H195: 68600 | I195: 150 | J195: X 4200-80
D196: X | E196: 4200 | F196: 100 | G196: 42000 | H196: 69100 | I196: 150 | J196: X 4200-100
D197: X | E197: 4200 | F197: 125 | G197: 42000 | H197: 69600 | I197: 150 | J197: X 4200-125
D198: X | E198: 6600 | F198: 16 | G198: 66300 | H198: 89000 | I198: 150 | J198: X 6600-16
D199: X | E199: 6600 | F199: 19 | G199: 66300 | H199: 91000 | I199: 150 | J199: X 6600-19
D200: X | E200: 6600 | F200: 25 | G200: 66300 | H200: 93900 | I200: 150 | J200: X 6600-25
... 663 more rows

Sheet Ford (hidden)
A1: Från W-DX35-62M | D1: Serie | E1: Modell | F1: Slagl | G1: Fi | H1: Fs | I1: Tryck | J1: StrCode
D2: WDX356203 | E2: 2 | F2: 16 | G2: 2650 | H2: 3500 | I2: 150 | J2: TU 250-16
D3: WDX356203 | E3: 2 | F3: 25 | G3: 2650 | H3: 3500 | I3: 150 | J3: TU 250-25
D4: WDX356203 | E4: 2 | F4: 38.1 | G4: 2650 | H4: 3500 | I4: 150 | J4: TU 250-38,1
D5: WDX356203 | E5: 2 | F5: 50 | G5: 2650 | H5: 3500 | I5: 150 | J5: TU 250-50
D6: WDX356203 | E6: 2 | F6: 63.5 | G6: 2650 | H6: 3500 | I6: 150 | J6: TU 250-63,5
D7: WDX356203 | E7: 2 | F7: 80 | G7: 2650 | H7: 3500 | I7: 150 | J7: TU 250-80
D8: WDX356203 | E8: 2 | F8: 100 | G8: 2650 | H8: 3500 | I8: 150 | J8: TU 250-100
D9: WDX356203 | E9: 2 | F9: 125 | G9: 2650 | H9: 3500 | I9: 150 | J9: TU 250-125
D10: WDX356203 | E10: 7 | F10: 16 | G10: 7400 | H10: 12000 | I10: 150 | J10: TU 750-16 | L10: Finns inte i vår katalog
D11: WDX356203 | E11: 7 | F11: 25 | G11: 7400 | H11: 12000 | I11: 150 | J11: TU 750-25
D12: WDX356203 | E12: 7 | F12: 38.1 | G12: 7400 | H12: 12000 | I12: 150 | J12: TU 750-38,1
D13: WDX356203 | E13: 7 | F13: 50 | G13: 7400 | H13: 12000 | I13: 150 | J13: TU 750-50
D14: WDX356203 | E14: 7 | F14: 63.5 | G14: 7400 | H14: 12000 | I14: 150 | J14: TU 750-63,5
D15: WDX356203 | E15: 7 | F15: 80 | G15: 7400 | H15: 12000 | I15: 150 | J15: TU 750-80
D16: WDX356203 | E16: 7 | F16: 100 | G16: 7400 | H16: 12000 | I16: 150 | J16: TU 750-100
D17: WDX356203 | E17: 7 | F17: 125 | G17: 7400 | H17: 12100 | I17: 150 | J17: TU 750-125
D18: WDX356203 | E18: 7 | F18: 160 | G18: 7400 | H18: 12100 | I18: 150 | J18: TU 750-160
D19: WDX356203 | E19: 7 | F19: 200 | G19: 7400 | H19: 12100 | I19: 150 | J19: TU 750-200
D20: WDX356203 | E20: 15 | F20: 16 | G20: 15000 | H20: 23000 | I20: 150 | J20: TU 1500-16 | L20: Finns inte i vår katalog
D21: WDX356203 | E21: 15 | F21: 25 | G21: 15000 | H21: 23000 | I21: 150 | J21: TU 1500-25
D22: WDX356203 | E22: 15 | F22: 38.1 | G22: 15000 | H22: 23000 | I22: 150 | J22: TU 1500-38,1
D23: WDX356203 | E23: 15 | F23: 50 | G23: 15000 | H23: 23000 | I23: 150 | J23: TU 1500-50
D24: WDX356203 | E24: 15 | F24: 63.5 | G24: 15000 | H24: 23000 | I24: 150 | J24: TU 1500-63,5
D25: WDX356203 | E25: 15 | F25: 80 | G25: 15000 | H25: 23000 | I25: 150 | J25: TU 1500-80
D26: WDX356203 | E26: 15 | F26: 100 | G26: 15000 | H26: 23000 | I26: 150 | J26: TU 1500-100
D27: WDX356203 | E27: 15 | F27: 125 | G27: 15000 | H27: 23000 | I27: 150 | J27: TU 1500-125
D28: WDX356203 | E28: 15 | F28: 160 | G28: 15000 | H28: 23000 | I28: 150 | J28: TU 1500-160
D29: WDX356203 | E29: 15 | F29: 200 | G29: 15000 | H29: 23000 | I29: 150 | J29: TU 1500-200
D30: WDX356203 | E30: 30 | F30: 16 | G30: 30000 | H30: 42000 | I30: 150 | J30: TU 3000-16 | L30: Finns inte i vår katalog
D31: WDX356203 | E31: 30 | F31: 25 | G31: 30000 | H31: 42000 | I31: 150 | J31: TU 3000-25
D32: WDX356203 | E32: 30 | F32: 38.1 | G32: 30000 | H32: 43000 | I32: 150 | J32: TU 3000-38,1
D33: WDX356203 | E33: 30 | F33: 50 | G33: 30000 | H33: 44000 | I33: 150 | J33: TU 3000-50
D34: WDX356203 | E34: 30 | F34: 63.5 | G34: 30000 | H34: 45000 | I34: 150 | J34: TU 3000-63,5
D35: WDX356203 | E35: 30 | F35: 80 | G35: 30000 | H35: 46000 | I35: 150 | J35: TU 3000-80
D36: WDX356203 | E36: 30 | F36: 100 | G36: 30000 | H36: 47000 | I36: 150 | J36: TU 3000-100
D37: WDX356203 | E37: 30 | F37: 125 | G37: 30000 | H37: 47000 | I37: 150 | J37: TU 3000-125
D38: WDX356203 | E38: 30 | F38: 160 | G38: 30000 | H38: 47000 | I38: 150 | J38: TU 3000-160
D39: WDX356203 | E39: 30 | F39: 200 | G39: 30000 | H39: 48000 | I39: 150 | J39: TU 3000-200
D40: WDX356203 | E40: 50 | F40: 16 | G40: 50000 | H40: 71000 | I40: 150 | J40: TU 5000-16 | L40: Finns inte i vår katalog
D41: WDX356203 | E41: 50 | F41: 25 | G41: 50000 | H41: 71000 | I41: 150 | J41: TU 5000-25
D42: WDX356203 | E42: 50 | F42: 38.1 | G42: 50000 | H42: 75000 | I42: 150 | J42: TU 5000-38,1
D43: WDX356203 | E43: 50 | F43: 50 | G43: 50000 | H43: 77000 | I43: 150 | J43: TU 5000-50
D44: WDX356203 | E44: 50 | F44: 63.5 | G44: 50000 | H44: 80000 | I44: 150 | J44: TU 5000-63,5
D45: WDX356203 | E45: 50 | F45: 80 | G45: 50000 | H45: 81000 | I45: 150 | J45: TU 5000-80
D46: WDX356203 | E46: 50 | F46: 100 | G46: 50000 | H46: 82000 | I46: 150 | J46: TU 5000-100
D47: WDX356203 | E47: 50 | F47: 125 | G47: 50000 | H47: 82000 | I47: 150 | J47: TU 5000-125
D48: WDX356203 | E48: 50 | F48: 160 | G48: 50000 | H48: 83000 | I48: 150 | J48: TU 5000-160
D49: WDX356203 | E49: 50 | F49: 200 | G49: 50000 | H49: 84000 | I49: 150 | J49: TU 5000-200
D50: WDX356203 | E50: 75 | F50: 16 | G50: 75000 | H50: 105000 | I50: 150 | J50: TU 7500-16 | L50: Finns inte i vår katalog
D51: WDX356203 | E51: 75 | F51: 25 | G51: 75000 | H51: 105000 | I51: 150 | J51: TU 7500-25
D52: WDX356203 | E52: 75 | F52: 38.1 | G52: 75000 | H52: 110000 | I52: 150 | J52: TU 7500-38,1
D53: WDX356203 | E53: 75 | F53: 50 | G53: 75000 | H53: 113000 | I53: 150 | J53: TU 7500-50
D54: WDX356203 | E54: 75 | F54: 63.5 | G54: 75000 | H54: 115000 | I54: 150 | J54: TU 7500-63,5
D55: WDX356203 | E55: 75 | F55: 80 | G55: 75000 | H55: 117000 | I55: 150 | J55: TU 7500-80
D56: WDX356203 | E56: 75 | F56: 100 | G56: 75000 | H56: 119000 | I56: 150 | J56: TU 7500-100
D57: WDX356203 | E57: 75 | F57: 125 | G57: 75000 | H57: 121000 | I57: 150 | J57: TU 7500-125
D58: WDX356203 | E58: 75 | F58: 160 | G58: 75000 | H58: 122000 | I58: 150 | J58: TU 7500-160
D59: WDX356203 | E59: 75 | F59: 200 | G59: 75000 | H59: 123000 | I59: 150 | J59: TU 7500-200
D60: WDX356204 | E60: 3 | F60: 25 | G60: 3600 | H60: 5500 | I60: 180 | J60: X 350-25
D61: WDX356204 | E61: 3 | F61: 38 | G61: 3600 | H61: 5500 | I61: 180 | J61: X 350-38
D62: WDX356204 | E62: 3 | F62: 50 | G62: 3600 | H62: 5600 | I62: 180 | J62: X 350-50
D63: WDX356204 | E63: 3 | F63: 63 | G63: 3600 | H63: 5500 | I63: 180 | J63: X 350-63
D64: WDX356204 | E64: 3 | F64: 80 | G64: 3600 | H64: 5500 | I64: 180 | J64: X 350-80
D65: WDX356204 | E65: 3 | F65: 100 | G65: 3600 | H65: 5500 | I65: 180 | J65: X 350-100
D66: WDX356204 | E66: 3 | F66: 125 | G66: 3600 | H66: 5500 | I66: 180 | J66: X 350-125
D67: WDX356204 | E67: 5 | F67: 25 | G67: 4700 | H67: 7300 | I67: 150 | J67: X 500-25
D68: WDX356204 | E68: 5 | F68: 38 | G68: 4700 | H68: 7200 | I68: 150 | J68: X 500-38
D69: WDX356204 | E69: 5 | F69: 50 | G69: 4700 | H69: 7200 | I69: 150 | J69: X 500-50
D70: WDX356204 | E70: 5 | F70: 63 | G70: 4700 | H70: 7200 | I70: 150 | J70: X 500-63
D71: WDX356204 | E71: 5 | F71: 80 | G71: 4700 | H71: 7100 | I71: 150 | J71: X 500-80
D72: WDX356204 | E72: 5 | F72: 100 | G72: 4700 | H72: 7100 | I72: 150 | J72: X 500-100
D73: WDX356204 | E73: 5 | F73: 125 | G73: 4700 | H73: 7100 | I73: 150 | J73: X 500-125
D74: WDX356204 | E74: 7 | F74: 25 | G74: 7400 | H74: 11800 | I74: 150 | J74: X 750-25
D75: WDX356204 | E75: 7 | F75: 38 | G75: 7400 | H75: 11800 | I75: 150 | J75: X 750-38
D76: WDX356204 | E76: 7 | F76: 50 | G76: 7400 | H76: 11800 | I76: 150 | J76: X 750-50
D77: WDX356204 | E77: 7 | F77: 63 | G77: 7400 | H77: 11800 | I77: 150 | J77: X 750-63
D78: WDX356204 | E78: 7 | F78: 80 | G78: 7400 | H78: 11900 | I78: 150 | J78: X 750-80
D79: WDX356204 | E79: 7 | F79: 100 | G79: 7400 | H79: 11900 | I79: 150 | J79: X 750-100
D80: WDX356204 | E80: 7 | F80: 125 | G80: 7400 | H80: 11900 | I80: 150 | J80: X 750-125
D81: WDX356204 | E81: 10 | F81: 25 | G81: 9200 | H81: 14200 | I81: 150 | J81: X 1000-25
D82: WDX356204 | E82: 10 | F82: 38 | G82: 9200 | H82: 14500 | I82: 150 | J82: X 1000-38
D83: WDX356204 | E83: 10 | F83: 50 | G83: 9200 | H83: 14600 | I83: 150 | J83: X 1000-50
D84: WDX356204 | E84: 10 | F84: 63 | G84: 9200 | H84: 14700 | I84: 150 | J84: X 1000-63
D85: WDX356204 | E85: 10 | F85: 80 | G85: 9200 | H85: 14800 | I85: 150 | J85: X 1000-80
D86: WDX356204 | E86: 10 | F86: 100 | G86: 9200 | H86: 14800 | I86: 150 | J86: X 1000-100
D87: WDX356204 | E87: 10 | F87: 125 | G87: 9200 | H87: 14800 | I87: 150 | J87: X 1000-125
D88: WDX356204 | E88: 15 | F88: 25 | G88: 15000 | H88: 24300 | I88: 150 | J88: X 1500-25
D89: WDX356204 | E89: 15 | F89: 38 | G89: 15000 | H89: 23900 | I89: 150 | J89: X 1500-38
D90: WDX356204 | E90: 15 | F90: 50 | G90: 15000 | H90: 24000 | I90: 150 | J90: X 1500-50
D91: WDX356204 | E91: 15 | F91: 63 | G91: 15000 | H91: 24100 | I91: 150 | J91: X 1500-63
D92: WDX356204 | E92: 15 | F92: 80 | G92: 15000 | H92: 24200 | I92: 150 | J92: X 1500-80
D93: WDX356204 | E93: 15 | F93: 100 | G93: 15000 | H93: 24300 | I93: 150 | J93: X 1500-100
D94: WDX356204 | E94: 15 | F94: 125 | G94: 15000 | H94: 24300 | I94: 150 | J94: X 1500-125
D95: WDX356204 | E95: 24 | F95: 25 | G95: 24000 | H95: 38700 | I95: 150 | J95: X 2400-25
D96: WDX356204 | E96: 24 | F96: 38 | G96: 24000 | H96: 38400 | I96: 150 | J96: X 2400-38
D97: WDX356204 | E97: 24 | F97: 50 | G97: 24000 | H97: 39200 | I97: 150 | J97: X 2400-50
D98: WDX356204 | E98: 24 | F98: 63 | G98: 24000 | H98: 39200 | I98: 150 | J98: X 2400-63
D99: WDX356204 | E99: 24 | F99: 80 | G99: 24000 | H99: 39200 | I99: 150 | J99: X 2400-80
D100: WDX356204 | E100: 24 | F100: 100 | G100: 24000 | H100: 39300 | I100: 150 | J100: X 2400-100
D101: WDX356204 | E101: 24 | F101: 125 | G101: 24000 | H101: 39300 | I101: 150 | J101: X 2400-125
D102: WDX356204 | E102: 42 | F102: 25 | G102: 42000 | H102: 60800 | I102: 150 | J102: X 4200-25
D103: WDX356204 | E103: 42 | F103: 38 | G103: 42000 | H103: 65800 | I103: 150 | J103: X 4200-38
D104: WDX356204 | E104: 42 | F104: 50 | G104: 42000 | H104: 67000 | I104: 150 | J104: X 4200-50
D105: WDX356204 | E105: 42 | F105: 63 | G105: 42000 | H105: 67800 | I105: 150 | J105: X 4200-63
D106: WDX356204 | E106: 42 | F106: 80 | G106: 42000 | H106: 68600 | I106: 150 | J106: X 4200-80
D107: WDX356204 | E107: 42 | F107: 100 | G107: 42000 | H107: 69100 | I107: 150 | J107: X 4200-100
D108: WDX356204 | E108: 42 | F108: 125 | G108: 42000 | H108: 69600 | I108: 150 | J108: X 4200-125
D109: WDX356204 | E109: 66 | F109: 25 | G109: 66300 | H109: 93900 | I109: 150 | J109: X 6600-25
D110: WDX356204 | E110: 66 | F110: 38 | G110: 66300 | H110: 98200 | I110: 150 | J110: X 6600-38
D111: WDX356204 | E111: 66 | F111: 50 | G111: 66300 | H111: 100600 | I111: 150 | J111: X 6600-50
D112: WDX356204 | E112: 66 | F112: 63 | G112: 66300 | H112: 102400 | I112: 150 | J112: X 6600-63
D113: WDX356204 | E113: 66 | F113: 80 | G113: 66300 | H113: 104100 | I113: 150 | J113: X 6600-80
D114: WDX356204 | E114: 66 | F114: 100 | G114: 66300 | H114: 105400 | I114: 150 | J114: X 6600-100
D115: WDX356204 | E115: 66 | F115: 125 | G115: 66300 | H115: 106500 | I115: 150 | J115: X 6600-125
D116: WDX356204 | E116: 95 | F116: 25 | G116: 95000 | H116: 139000 | I116: 150 | J116: X 9500-25
D117: WDX356204 | E117: 95 | F117: 38 | G117: 95000 | H117: 143000 | I117: 150 | J117: X 9500-38
D118: WDX356204 | E118: 95 | F118: 50 | G118: 95000 | H118: 146000 | I118: 150 | J118: X 9500-50
D119: WDX356204 | E119: 95 | F119: 63 | G119: 95000 | H119: 148000 | I119: 150 | J119: X 9500-63
D120: WDX356204 | E120: 95 | F120: 80 | G120: 95000 | H120: 150000 | I120: 150 | J120: X 9500-80
D121: WDX356204 | E121: 95 | F121: 100 | G121: 95000 | H121: 151000 | I121: 150 | J121: X 9500-100
D122: WDX356204 | E122: 95 | F122: 125 | G122: 95000 | H122: 152000 | I122: 150 | J122: X 9500-125

Sheet GM (hidden)
A1: GM | D1: Serie | E1: Modell | F1: Slagl | G1: Fi | H1: Fs | I1: Tryck | J1: StrCode
D2: 90.25.00 | E2: 1.5 | F2: 10 | G2: 2000 | H2: 3060 | I2: 180 | J2: MC3 SP-10
D3: 90.25.00 | E3: 1.5 | F3: 16 | G3: 2000 | H3: 3070 | I3: 180 | J3: MC3 SP-16
D4: 90.25.00 | E4: 1.5 | F4: 25 | G4: 2000 | H4: 3080 | I4: 180 | J4: MC3 SP-25
D5: 90.25.00 | E5: 1.5 | F5: 50 | G5: 2000 | H5: 3090 | I5: 180 | J5: MC3 SP-50
D6: 90.25.00 | E6: 1.5 | F6: 80 | G6: 2000 | H6: 3040 | I6: 180 | J6: MC3 SP-80
D7: 90.25.00 | E7: 1.5 | F7: 100 | G7: 2000 | H7: 3050 | I7: 180 | J7: MC3 SP-100
D8: 90.25.00 | E8: 1.5 | F8: 125 | G8: 2000 | H8: 3060 | I8: 180 | J8: MC3 SP-125
D9: 90.25.00 | E9: 2.5 | F9: 10 | G9: 2650 | H9: 3500 | I9: 150 | J9: TU 250-10
D10: 90.25.00 | E10: 2.5 | F10: 16 | G10: 2650 | H10: 3500 | I10: 150 | J10: TU 250-16
D11: 90.25.00 | E11: 2.5 | F11: 25 | G11: 2650 | H11: 3500 | I11: 150 | J11: TU 250-25
D12: 90.25.00 | E12: 2.5 | F12: 50 | G12: 2650 | H12: 3500 | I12: 150 | J12: TU 250-50
D13: 90.25.00 | E13: 2.5 | F13: 80 | G13: 2650 | H13: 3500 | I13: 150 | J13: TU 250-80
D14: 90.25.00 | E14: 2.5 | F14: 100 | G14: 2650 | H14: 3500 | I14: 150 | J14: TU 250-100
D15: 90.25.00 | E15: 2.5 | F15: 125 | G15: 2650 | H15: 3500 | I15: 150 | J15: TU 250-125
D16: 90.25.00 | E16: 5 | F16: 25 | G16: 4700 | H16: 6400 | I16: 150 | J16: TU 500-25
D17: 90.25.00 | E17: 5 | F17: 50 | G17: 4700 | H17: 6600 | I17: 150 | J17: TU 500-50
D18: 90.25.00 | E18: 5 | F18: 80 | G18: 4700 | H18: 6700 | I18: 150 | J18: TU 500-80
D19: 90.25.00 | E19: 5 | F19: 100 | G19: 4700 | H19: 6700 | I19: 150 | J19: TU 500-100
D20: 90.25.00 | E20: 5 | F20: 125 | G20: 4700 | H20: 6700 | I20: 150 | J20: TU 500-125
D21: 90.25.00 | E21: 5 | F21: 160 | G21: 4700 | H21: 6700 | I21: 150 | J21: TU 500-160
D22: 90.25.00 | E22: 7.5 | F22: 25 | G22: 7400 | H22: 12000 | I22: 150 | J22: TU 750-25
D23: 90.25.00 | E23: 7.5 | F23: 50 | G23: 7400 | H23: 12000 | I23: 150 | J23: TU 750-50
D24: 90.25.00 | E24: 7.5 | F24: 80 | G24: 7400 | H24: 12000 | I24: 150 | J24: TU 750-80
D25: 90.25.00 | E25: 7.5 | F25: 100 | G25: 7400 | H25: 12000 | I25: 150 | J25: TU 750-100
D26: 90.25.00 | E26: 7.5 | F26: 125 | G26: 7400 | H26: 12100 | I26: 150 | J26: TU 750-125
D27: 90.25.00 | E27: 7.5 | F27: 160 | G27: 7400 | H27: 12100 | I27: 150 | J27: TU 750-160
D28: 90.25.00 | E28: 7.5 | F28: 200 | G28: 7400 | H28: 12100 | I28: 150 | J28: TU 750-200
D29: 90.25.00 | E29: 7.5 | F29: 250 | G29: 7400 | H29: 12100 | I29: 150 | J29: TU 750-250
D30: 90.25.00 | E30: 7.5 | F30: 300 | G30: 7400 | H30: 12100 | I30: 150 | J30: TU 750-300
D31: 90.25.00 | E31: 15 | F31: 25 | G31: 15000 | H31: 23000 | I31: 150 | J31: TU 1500-25
D32: 90.25.00 | E32: 15 | F32: 50 | G32: 15000 | H32: 23000 | I32: 150 | J32: TU 1500-50
D33: 90.25.00 | E33: 15 | F33: 80 | G33: 15000 | H33: 23000 | I33: 150 | J33: TU 1500-80
D34: 90.25.00 | E34: 15 | F34: 100 | G34: 15000 | H34: 23000 | I34: 150 | J34: TU 1500-100
D35: 90.25.00 | E35: 15 | F35: 125 | G35: 15000 | H35: 23000 | I35: 150 | J35: TU 1500-125
D36: 90.25.00 | E36: 15 | F36: 160 | G36: 15000 | H36: 23000 | I36: 150 | J36: TU 1500-160
D37: 90.25.00 | E37: 15 | F37: 200 | G37: 15000 | H37: 23000 | I37: 150 | J37: TU 1500-200
D38: 90.25.00 | E38: 15 | F38: 250 | G38: 15000 | H38: 23000 | I38: 150 | J38: TU 1500-250
D39: 90.25.00 | E39: 15 | F39: 300 | G39: 15000 | H39: 23000 | I39: 150 | J39: TU 1500-300
D40: 90.25.00 | E40: 30 | F40: 25 | G40: 30000 | H40: 42000 | I40: 150 | J40: TU 3000-25
D41: 90.25.00 | E41: 30 | F41: 50 | G41: 30000 | H41: 44000 | I41: 150 | J41: TU 3000-50
D42: 90.25.00 | E42: 30 | F42: 80 | G42: 30000 | H42: 46000 | I42: 150 | J42: TU 3000-80
D43: 90.25.00 | E43: 30 | F43: 100 | G43: 30000 | H43: 47000 | I43: 150 | J43: TU 3000-100
D44: 90.25.00 | E44: 30 | F44: 125 | G44: 30000 | H44: 47000 | I44: 150 | J44: TU 3000-125
D45: 90.25.00 | E45: 30 | F45: 160 | G45: 30000 | H45: 47000 | I45: 150 | J45: TU 3000-160
D46: 90.25.00 | E46: 30 | F46: 200 | G46: 30000 | H46: 48000 | I46: 150 | J46: TU 3000-200
D47: 90.25.00 | E47: 30 | F47: 250 | G47: 30000 | H47: 48000 | I47: 150 | J47: TU 3000-250
D48: 90.25.00 | E48: 30 | F48: 300 | G48: 30000 | H48: 48000 | I48: 150 | J48: TU 3000-300
D49: 90.25.00 | E49: 50 | F49: 25 | G49: 50000 | H49: 71000 | I49: 150 | J49: TU 5000-25
D50: 90.25.00 | E50: 50 | F50: 50 | G50: 50000 | H50: 77000 | I50: 150 | J50: TU 5000-50
D51: 90.25.00 | E51: 50 | F51: 80 | G51: 50000 | H51: 81000 | I51: 150 | J51: TU 5000-80
D52: 90.25.00 | E52: 50 | F52: 100 | G52: 50000 | H52: 82000 | I52: 150 | J52: TU 5000-100
D53: 90.25.00 | E53: 50 | F53: 125 | G53: 50000 | H53: 82000 | I53: 150 | J53: TU 5000-125
D54: 90.25.00 | E54: 50 | F54: 160 | G54: 50000 | H54: 83000 | I54: 150 | J54: TU 5000-160
D55: 90.25.00 | E55: 50 | F55: 200 | G55: 50000 | H55: 84000 | I55: 150 | J55: TU 5000-200
D56: 90.25.00 | E56: 50 | F56: 250 | G56: 50000 | H56: 84000 | I56: 150 | J56: TU 5000-250
D57: 90.25.00 | E57: 50 | F57: 300 | G57: 50000 | H57: 84000 | I57: 150 | J57: TU 5000-300
D58: 90.25.00 | E58: 75 | F58: 25 | G58: 75000 | H58: 105000 | I58: 150 | J58: TU 7500-25
D59: 90.25.00 | E59: 75 | F59: 50 | G59: 75000 | H59: 113000 | I59: 150 | J59: TU 7500-50
D60: 90.25.00 | E60: 75 | F60: 80 | G60: 75000 | H60: 117000 | I60: 150 | J60: TU 7500-80
D61: 90.25.00 | E61: 75 | F61: 100 | G61: 75000 | H61: 119000 | I61: 150 | J61: TU 7500-100
D62: 90.25.00 | E62: 75 | F62: 125 | G62: 75000 | H62: 121000 | I62: 150 | J62: TU 7500-125
D63: 90.25.00 | E63: 75 | F63: 160 | G63: 75000 | H63: 122000 | I63: 150 | J63: TU 7500-160
D64: 90.25.00 | E64: 75 | F64: 200 | G64: 75000 | H64: 123000 | I64: 150 | J64: TU 7500-200
D65: 90.25.00 | E65: 75 | F65: 250 | G65: 75000 | H65: 124000 | I65: 150 | J65: TU 7500-250
D66: 90.25.00 | E66: 75 | F66: 300 | G66: 75000 | H66: 124000 | I66: 150 | J66: TU 7500-300
D67: 90.25.00 | E67: 100 | F67: 25 | G67: 106000 | H67: 138000 | I67: 150 | J67: TU 10000-25
D68: 90.25.00 | E68: 100 | F68: 50 | G68: 106000 | H68: 147000 | I68: 150 | J68: TU 10000-50
D69: 90.25.00 | E69: 100 | F69: 80 | G69: 106000 | H69: 152000 | I69: 150 | J69: TU 10000-80
D70: 90.25.00 | E70: 100 | F70: 100 | G70: 106000 | H70: 156000 | I70: 150 | J70: TU 10000-100
D71: 90.25.00 | E71: 100 | F71: 125 | G71: 106000 | H71: 157000 | I71: 150 | J71: TU 10000-125
D72: 90.25.00 | E72: 100 | F72: 160 | G72: 106000 | H72: 158000 | I72: 150 | J72: TU 10000-160
D73: 90.25.00 | E73: 100 | F73: 200 | G73: 106000 | H73: 160000 | I73: 150 | J73: TU 10000-200
D74: 90.25.00 | E74: 100 | F74: 250 | G74: 106000 | H74: 160000 | I74: 150 | J74: TU 10000-250
D75: 90.25.00 | E75: 100 | F75: 300 | G75: 106000 | H75: 160000 | I75: 150 | J75: TU 10000-300
D76: 90.25.08 | E76: 3.5 | F76: 10 | G76: 3600 | H76: 5900 | I76: 180 | J76: X 350-10
D77: 90.25.08 | E77: 3.5 | F77: 16 | G77: 3600 | H77: 5300 | I77: 180 | J77: X 350-16
D78: 90.25.08 | E78: 3.5 | F78: 25 | G78: 3600 | H78: 5500 | I78: 180 | J78: X 350-25
D79: 90.25.08 | E79: 3.5 | F79: 50 | G79: 3600 | H79: 5600 | I79: 180 | J79: X 350-50
D80: 90.25.08 | E80: 3.5 | F80: 63 | G80: 3600 | H80: 5500 | I80: 180 | J80: X 350-63
D81: 90.25.08 | E81: 3.5 | F81: 80 | G81: 3600 | H81: 5500 | I81: 180 | J81: X 350-80
D82: 90.25.08 | E82: 3.5 | F82: 100 | G82: 3600 | H82: 5500 | I82: 180 | J82: X 350-100
D83: 90.25.08 | E83: 3.5 | F83: 125 | G83: 3600 | H83: 5500 | I83: 180 | J83: X 350-125
D84: 90.25.08 | E84: 5 | F84: 16 | G84: 4700 | H84: 7200 | I84: 150 | J84: X 500-16
D85: 90.25.08 | E85: 5 | F85: 25 | G85: 4700 | H85: 7300 | I85: 150 | J85: X 500-25
D86: 90.25.08 | E86: 5 | F86: 50 | G86: 4700 | H86: 7200 | I86: 150 | J86: X 500-50
D87: 90.25.08 | E87: 5 | F87: 63 | G87: 4700 | H87: 7200 | I87: 150 | J87: X 500-63
D88: 90.25.08 | E88: 5 | F88: 80 | G88: 4700 | H88: 7100 | I88: 150 | J88: X 500-80
D89: 90.25.08 | E89: 5 | F89: 100 | G89: 4700 | H89: 7100 | I89: 150 | J89: X 500-100
D90: 90.25.08 | E90: 5 | F90: 125 | G90: 4700 | H90: 7100 | I90: 150 | J90: X 500-125
D91: 90.25.08 | E91: 7.5 | F91: 16 | G91: 7400 | H91: 12100 | I91: 150 | J91: X 750-16
D92: 90.25.08 | E92: 7.5 | F92: 25 | G92: 7400 | H92: 11800 | I92: 150 | J92: X 750-25
D93: 90.25.08 | E93: 7.5 | F93: 50 | G93: 7400 | H93: 11800 | I93: 150 | J93: X 750-50
D94: 90.25.08 | E94: 7.5 | F94: 63 | G94: 7400 | H94: 11800 | I94: 150 | J94: X 750-63
D95: 90.25.08 | E95: 7.5 | F95: 80 | G95: 7400 | H95: 11900 | I95: 150 | J95: X 750-80
D96: 90.25.08 | E96: 7.5 | F96: 100 | G96: 7400 | H96: 11900 | I96: 150 | J96: X 750-100
D97: 90.25.08 | E97: 7.5 | F97: 125 | G97: 7400 | H97: 11900 | I97: 150 | J97: X 750-125
D98: 90.25.08 | E98: 10 | F98: 16 | G98: 9200 | H98: 13800 | I98: 150 | J98: X 1000-16
D99: 90.25.08 | E99: 10 | F99: 25 | G99: 9200 | H99: 14200 | I99: 150 | J99: X 1000-25
D100: 90.25.08 | E100: 10 | F100: 50 | G100: 9200 | H100: 14600 | I100: 150 | J100: X 1000-50
D101: 90.25.08 | E101: 10 | F101: 63 | G101: 9200 | H101: 14700 | I101: 150 | J101: X 1000-63
D102: 90.25.08 | E102: 10 | F102: 80 | G102: 9200 | H102: 14800 | I102: 150 | J102: X 1000-80
D103: 90.25.08 | E103: 10 | F103: 100 | G103: 9200 | H103: 14800 | I103: 150 | J103: X 1000-100
D104: 90.25.08 | E104: 10 | F104: 125 | G104: 9200 | H104: 14800 | I104: 150 | J104: X 1000-125
D105: 90.25.08 | E105: 24 | F105: 16 | G105: 24000 | H105: 38300 | I105: 150 | J105: X 2400-16
D106: 90.25.08 | E106: 24 | F106: 25 | G106: 24000 | H106: 38700 | I106: 150 | J106: X 2400-25
D107: 90.25.08 | E107: 24 | F107: 50 | G107: 24000 | H107: 39200 | I107: 150 | J107: X 2400-50
D108: 90.25.08 | E108: 24 | F108: 63 | G108: 24000 | H108: 39200 | I108: 150 | J108: X 2400-63
D109: 90.25.08 | E109: 24 | F109: 80 | G109: 24000 | H109: 39200 | I109: 150 | J109: X 2400-80
D110: 90.25.08 | E110: 24 | F110: 100 | G110: 24000 | H110: 39300 | I110: 150 | J110: X 2400-100
D111: 90.25.08 | E111: 24 | F111: 125 | G111: 24000 | H111: 39300 | I111: 150 | J111: X 2400-125
D112: 90.25.08 | E112: 42 | F112: 16 | G112: 42000 | H112: 61700 | I112: 150 | J112: X 4200-16
D113: 90.25.08 | E113: 42 | F113: 25 | G113: 42000 | H113: 60800 | I113: 150 | J113: X 4200-25
D114: 90.25.08 | E114: 42 | F114: 50 | G114: 42000 | H114: 67000 | I114: 150 | J114: X 4200-50
D115: 90.25.08 | E115: 42 | F115: 63 | G115: 42000 | H115: 67800 | I115: 150 | J115: X 4200-63
D116: 90.25.08 | E116: 42 | F116: 80 | G116: 42000 | H116: 68600 | I116: 150 | J116: X 4200-80
D117: 90.25.08 | E117: 42 | F117: 100 | G117: 42000 | H117: 69100 | I117: 150 | J117: X 4200-100
D118: 90.25.08 | E118: 42 | F118: 125 | G118: 42000 | H118: 69600 | I118: 150 | J118: X 4200-125
D119: 90.25.08 | E119: 66 | F119: 16 | G119: 66300 | H119: 89000 | I119: 150 | J119: X 6600-16
D120: 90.25.08 | E120: 66 | F120: 25 | G120: 66300 | H120: 93900 | I120: 150 | J120: X 6600-25
D121: 90.25.08 | E121: 66 | F121: 50 | G121: 66300 | H121: 100600 | I121: 150 | J121: X 6600-50
D122: 90.25.08 | E122: 66 | F122: 63 | G122: 66300 | H122: 102400 | I122: 150 | J122: X 6600-63
D123: 90.25.08 | E123: 66 | F123: 80 | G123: 66300 | H123: 104100 | I123: 150 | J123: X 6600-80
D124: 90.25.08 | E124: 66 | F124: 100 | G124: 66300 | H124: 105400 | I124: 150 | J124: X 6600-100
D125: 90.25.08 | E125: 66 | F125: 125 | G125: 66300 | H125: 106500 | I125: 150 | J125: X 6600-125
D126: 90.25.08 | E126: 95 | F126: 25 | G126: 95000 | H126: 139000 | I126: 150 | J126: X 9500-25
D127: 90.25.08 | E127: 95 | F127: 50 | G127: 95000 | H127: 146000 | I127: 150 | J127: X 9500-50
D128: 90.25.08 | E128: 95 | F128: 63 | G128: 95000 | H128: 148000 | I128: 150 | J128: X 9500-63
D129: 90.25.08 | E129: 95 | F129: 80 | G129: 95000 | H129: 150000 | I129: 150 | J129: X 9500-80
D130: 90.25.08 | E130: 95 | F130: 100 | G130: 95000 | H130: 151000 | I130: 150 | J130: X 9500-100
D131: 90.25.08 | E131: 95 | F131: 125 | G131: 95000 | H131: 152000 | I131: 150 | J131: X 9500-125
D132: 90.25.08 | E132: 199 | F132: 25 | G132: 200000 | H132: 270000 | I132: 150 | J132: X 20000-25
D133: 90.25.08 | E133: 199 | F133: 50 | G133: 200000 | H133: 298000 | I133: 150 | J133: X 20000-50
D134: 90.25.08 | E134: 199 | F134: 63 | G134: 200000 | H134: 307000 | I134: 150 | J134: X 20000-63
D135: 90.25.08 | E135: 199 | F135: 80 | G135: 200000 | H135: 315000 | I135: 150 | J135: X 20000-80
D136: 90.25.08 | E136: 199 | F136: 100 | G136: 200000 | H136: 323000 | I136: 150 | J136: X 20000-100
D137: 90.25.08 | E137: 199 | F137: 125 | G137: 200000 | H137: 330000 | I137: 150 | J137: X 20000-125
D138: 90.25.05 | E138: 7.5 | F138: 50 | G138: 9200 | H138: 13200 | I138: 150 | J138: TX 1000-50
D139: 90.25.05 | E139: 7.5 | F139: 80 | G139: 9200 | H139: 13800 | I139: 150 | J139: TX 1000-80
D140: 90.25.05 | E140: 7.5 | F140: 100 | G140: 9200 | H140: 14100 | I140: 150 | J140: TX 1000-100
D141: 90.25.05 | E141: 7.5 | F141: 125 | G141: 9200 | H141: 14300 | I141: 150 | J141: TX 1000-125
D142: 90.25.05 | E142: 7.5 | F142: 160 | G142: 9200 | H142: 14500 | I142: 150 | J142: TX 1000-160
D143: 90.25.05 | E143: 7.5 | F143: 200 | G143: 9200 | H143: 14700 | I143: 150 | J143: TX 1000-200
D144: 90.25.05 | E144: 7.5 | F144: 250 | G144: 9200 | H144: 14800 | I144: 150 | J144: TX 1000-250
D145: 90.25.05 | E145: 7.5 | F145: 300 | G145: 9200 | H145: 14900 | I145: 150 | J145: TX 1000-300
D146: 90.25.05 | E146: 15 | F146: 25 | G146: 24000 | H146: 37100 | I146: 150 | J146: TX 2400-25
D147: 90.25.05 | E147: 15 | F147: 50 | G147: 24000 | H147: 37900 | I147: 150 | J147: TX 2400-50
D148: 90.25.05 | E148: 15 | F148: 80 | G148: 24000 | H148: 38300 | I148: 150 | J148: TX 2400-80
D149: 90.25.05 | E149: 15 | F149: 100 | G149: 24000 | H149: 38500 | I149: 150 | J149: TX 2400-100
D150: 90.25.05 | E150: 15 | F150: 125 | G150: 24000 | H150: 38700 | I150: 150 | J150: TX 2400-125
D151: 90.25.05 | E151: 15 | F151: 160 | G151: 24000 | H151: 38800 | I151: 150 | J151: TX 2400-160
D152: 90.25.05 | E152: 15 | F152: 200 | G152: 24000 | H152: 38900 | I152: 150 | J152: TX 2400-200
D153: 90.25.05 | E153: 15 | F153: 250 | G153: 24000 | H153: 39000 | I153: 150 | J153: TX 2400-250
D154: 90.25.05 | E154: 15 | F154: 300 | G154: 24000 | H154: 39100 | I154: 150 | J154: TX 2400-300
D155: 90.25.05 | E155: 30 | F155: 25 | G155: 42000 | H155: 52100 | I155: 150 | J155: TX 4200-25
D156: 90.25.05 | E156: 30 | F156: 50 | G156: 42000 | H156: 57200 | I156: 150 | J156: TX 4200-50
D157: 90.25.05 | E157: 30 | F157: 80 | G157: 42000 | H157: 60800 | I157: 150 | J157: TX 4200-80
D158: 90.25.05 | E158: 30 | F158: 100 | G158: 42000 | H158: 62500 | I158: 150 | J158: TX 4200-100
D159: 90.25.05 | E159: 30 | F159: 125 | G159: 42000 | H159: 64000 | I159: 150 | J159: TX 4200-125
D160: 90.25.05 | E160: 30 | F160: 160 | G160: 42000 | H160: 65500 | I160: 150 | J160: TX 4200-160
D161: 90.25.05 | E161: 30 | F161: 200 | G161: 42000 | H161: 66800 | I161: 150 | J161: TX 4200-200
D162: 90.25.05 | E162: 30 | F162: 250 | G162: 42000 | H162: 67900 | I162: 150 | J162: TX 4200-250
D163: 90.25.05 | E163: 30 | F163: 300 | G163: 42000 | H163: 68700 | I163: 150 | J163: TX 4200-300
D164: 90.25.05 | E164: 50 | F164: 25 | G164: 66300 | H164: 79500 | I164: 150 | J164: TX 6600-25
D165: 90.25.05 | E165: 50 | F165: 50 | G165: 66300 | H165: 87000 | I165: 150 | J165: TX 6600-50
D166: 90.25.05 | E166: 50 | F166: 80 | G166: 66300 | H166: 92600 | I166: 150 | J166: TX 6600-80
D167: 90.25.05 | E167: 50 | F167: 100 | G167: 66300 | H167: 95100 | I167: 150 | J167: TX 6600-100
D168: 90.25.05 | E168: 50 | F168: 125 | G168: 66300 | H168: 97600 | I168: 150 | J168: TX 6600-125
D169: 90.25.05 | E169: 50 | F169: 160 | G169: 66300 | H169: 100100 | I169: 150 | J169: TX 6600-160
D170: 90.25.05 | E170: 50 | F170: 200 | G170: 66300 | H170: 102200 | I170: 150 | J170: TX 6600-200
D171: 90.25.05 | E171: 50 | F171: 250 | G171: 66300 | H171: 104000 | I171: 150 | J171: TX 6600-250
D172: 90.25.05 | E172: 50 | F172: 300 | G172: 66300 | H172: 105300 | I172: 150 | J172: TX 6600-300
D173: 90.25.05 | E173: 75 | F173: 25 | G173: 95000 | H173: 113200 | I173: 150 | J173: TX 9500-25
D174: 90.25.05 | E174: 75 | F174: 50 | G174: 95000 | H174: 123300 | I174: 150 | J174: TX 9500-50
D175: 90.25.05 | E175: 75 | F175: 80 | G175: 95000 | H175: 130800 | I175: 150 | J175: TX 9500-80
D176: 90.25.05 | E176: 75 | F176: 100 | G176: 95000 | H176: 134300 | I176: 150 | J176: TX 9500-100
D177: 90.25.05 | E177: 75 | F177: 125 | G177: 95000 | H177: 137600 | I177: 150 | J177: TX 9500-125
D178: 90.25.05 | E178: 75 | F178: 160 | G178: 95000 | H178: 141000 | I178: 150 | J178: TX 9500-160
D179: 90.25.05 | E179: 75 | F179: 200 | G179: 95000 | H179: 143800 | I179: 150 | J179: TX 9500-200
D180: 90.25.05 | E180: 75 | F180: 250 | G180: 95000 | H180: 146300 | I180: 150 | J180: TX 9500-250
D181: 90.25.05 | E181: 75 | F181: 300 | G181: 95000 | H181: 148200 | I181: 150 | J181: TX 9500-300
D182: 90.25.05 | E182: 100 | F182: 25 | G182: 200000 | H182: 242000 | I182: 150 | J182: TX 20000-25
D183: 90.25.05 | E183: 100 | F183: 50 | G183: 200000 | H183: 266800 | I183: 150 | J183: TX 20000-50
D184: 90.25.05 | E184: 100 | F184: 80 | G184: 200000 | H184: 285700 | I184: 150 | J184: TX 20000-80
D185: 90.25.05 | E185: 100 | F185: 100 | G185: 200000 | H185: 294600 | I185: 150 | J185: TX 20000-100
D186: 90.25.05 | E186: 100 | F186: 125 | G186: 200000 | H186: 303100 | I186: 150 | J186: TX 20000-125
D187: 90.25.05 | E187: 100 | F187: 160 | G187: 200000 | H187: 312000 | I187: 150 | J187: TX 20000-160
D188: 90.25.05 | E188: 100 | F188: 200 | G188: 200000 | H188: 319000 | I188: 150 | J188: TX 20000-200
D189: 90.25.05 | E189: 100 | F189: 250 | G189: 200000 | H189: 325600 | I189: 150 | J189: TX 20000-250
D190: 90.25.05 | E190: 100 | F190: 300 | G190: 200000 | H190: 330600 | I190: 150 | J190: TX 20000-300

Sheet Unit conv (hidden)
A12: Unit convertion
C15: Pressure
B16: 1 | C16: bar | D16: 1
A17: Konverteringsfaktor | B17: =INDEX(D16:D17,B16) -> 1 | C17: psi | D17: 14.5037738 | H17: 150 | I17: bar | J17: =H17*B17 -> 150
B18: =INDEX(C16:C17,B16) -> bar
C21: Force
B22: 1 | C22: kN | D22: 1
A23: Konverteringsfaktor | B23: =INDEX(D22:D23,B22) -> 1 | C23: lbf | D23: 224.8089
B24: =INDEX(C22:C23,B22) -> kN
B28: 2 | C28: ° C
C29: ° F
C32: Polytrop kurva | E32: Förskjutning för polytropa värden
B33: 1 | C33: Isothermal | D33: 0 | E33: Förskjutning 0 rader
A34: Förskjutningsfaktor | B34: =INDEX(D33:D34,B33) -> 0 | C34: Polytropic | D34: 3 | E34: Förskjutning 3 rader
A35: Väljer y-värden att plotta

Sheet Fjäderkurva (hidden)
C1: Ändring
C2: 2016-06-07
E7: Input från annan flik | L7: Virtuell slagvolym
C9: Fi | D9: =Calculator!N2 -> 2650 | E9: N | F9: Initialkraft vid 20 °C | L9: Kurva | Q9: Iso t kraft per fj
C10: Fs | D10: =Calculator!O2 -> 3500 | E10: N | F10: Detta är isoterm kraftökning | M10: Slag (mm) | N10: Virtuell volym | O10: Vi / Vf | P10: (Vi / Vf)^kappa | Q10: kN eller lbf | R10: Isothermal force at 20 °C | S10: Isothermal force at estimated running temperature | T10: Polytrop kraft per fjäder | U10: Polytropic force at 20 °C | V10: Polytropic force at estimated running temperature | AA10: Driftstemperatur | AG10: =OFFSET(R10,0,'Unit conv'!$B$34,1,1) -> Isothermal force at 20 °C | AH10: =OFFSET(S10,0,'Unit conv'!$B$34,1,1) -> Isothermal force at estimated running temperature
C11: slagl | D11: =Calculator!M2 -> 10 | E11: mm | L11: 0 | M11: =L11*$D$14 -> 0 | N11: =$D$26-M11 -> 41.17647059 | O11: =$D$26/N11 -> 1 | P11: =O11^$D$35 -> 1 | Q11: =$D$45*O11 -> 2.65 | R11: =Q11*$D$15 -> 2.65 | S11: =R11*$AA$17 -> 2.719167079 | T11: =$D$45*P11 -> 2.65 | U11: =$D$15*T11 -> 2.65 | V11: =U11*$AA$17 -> 2.719167079 | AA11: =Calculator!K10 -> 22.64752992 | AG11: =OFFSET(R11,0,'Unit conv'!$B$34,1,1) -> 2.65 | AH11: =OFFSET(S11,0,'Unit conv'!$B$34,1,1) -> 2.719167079
C12: Utnyttjad slagl | D12: =Calculator!X18 -> 10 | E12: mm | L12: 0.1 | M12: 1 | N12: 40.17647059 | O12: 1.02489019 | P12: 1.035018877 | Q12: 2.715959004 | R12: 2.715959004 | S12: 2.786847666 | T12: 2.742800025 | U12: 2.742800025 | V12: =U12*$AA$17 -> 2.814389258 | AA12: =Calculator!K15 -> 32.64752992 | AG12: =OFFSET(R12,0,'Unit conv'!$B$34,1,1) -> 2.715959004 | AH12: =OFFSET(S12,0,'Unit conv'!$B$34,1,1) -> 2.786847666
C13: Använd slaglängd ev reducerad till max | D13: =IF(D12>D11,D11,D12) -> 10 | E13: mm | L13: 0.2 | M13: 2 | N13: 39.17647059 | O13: 1.051051051 | P13: 1.072193908 | Q13: 2.785285285 | R13: 2.785285285 | S13: 2.857983417 | T13: 2.841313855 | U13: 2.841313855 | V13: 2.915474377 | AA13: Medel | AG13: =OFFSET(R13,0,'Unit conv'!$B$34,1,1) -> 2.785285285 | AH13: =OFFSET(S13,0,'Unit conv'!$B$34,1,1) -> 2.857983417
C14: utnyttjad slagl mm | D14: =D13 -> 10 | E14: mm | L14: 0.3 | M14: 3 | N14: 38.17647059 | O14: 1.078582435 | P14: 1.11171811 | Q14: 2.858243451 | R14: 2.858243451 | S14: 2.932845848 | T14: 2.946052992 | U14: 2.946052992 | V14: 3.022947287 | AA14: =IFERROR((AA11+AA12)*0.5,20) -> 27.64752992 | AG14: =OFFSET(R14,0,'Unit conv'!$B$34,1,1) -> 2.858243451 | AH14: =OFFSET(S14,0,'Unit conv'!$B$34,1,1) -> 2.932845848
C15: Antal fjädrar | D15: =Calculator!X16 -> 1 | E15: st | L15: 0.4 | M15: 4 | N15: 37.17647059 | O15: 1.107594937 | P15: 1.15380747 | Q15: 2.935126582 | R15: 2.935126582 | S15: 3.011735689 | T15: 3.057589796 | U15: 3.057589796 | V15: 3.137395289 | AG15: =OFFSET(R15,0,'Unit conv'!$B$34,1,1) -> 2.935126582 | AH15: =OFFSET(S15,0,'Unit conv'!$B$34,1,1) -> 3.011735689
C16: Status tryckenhet | D16: ='Unit conv'!B17 -> 1 | E16: ='Unit conv'!B18 -> bar | L16: 0.5 | M16: 5 | N16: 36.17647059 | O16: 1.138211382 | P16: 1.198704385 | Q16: 3.016260163 | R16: 3.016260163 | S16: 3.09498692 | T16: 3.17656662 | U16: 3.17656662 | V16: 3.259477501 | AA16: ktemp (273+T)/(237+20) | AG16: =OFFSET(R16,0,'Unit conv'!$B$34,1,1) -> 3.016260163 | AH16: =OFFSET(S16,0,'Unit conv'!$B$34,1,1) -> 3.09498692
C17: Status kraftenhet | D17: ='Unit conv'!B23 -> 1 | E17: ='Unit conv'!B24 -> kN | L17: 0.6 | M17: 6 | N17: 35.17647059 | O17: 1.170568562 | P17: 1.24668174 | Q17: 3.102006689 | R17: 3.102006689 | S17: 3.182971498 | T17: 3.303706611 | U17: 3.303706611 | V17: 3.389935946 | AA17: =(273+AA14)/(273+20) -> 1.026100785 | AG17: =OFFSET(R17,0,'Unit conv'!$B$34,1,1) -> 3.102006689 | AH17: =OFFSET(S17,0,'Unit conv'!$B$34,1,1) -> 3.182971498
C18: tryck från control | D18: =Calculator!X17 -> 150 | L18: 0.7 | M18: 7 | N18: 34.17647059 | O18: 1.204819277 | P18: 1.298047756 | Q18: 3.192771084 | R18: 3.192771084 | S18: 3.276104915 | T18: 3.439826553 | U18: 3.439826553 | V18: 3.529608725 | AG18: =OFFSET(R18,0,'Unit conv'!$B$34,1,1) -> 3.192771084 | AH18: =OFFSET(S18,0,'Unit conv'!$B$34,1,1) -> 3.276104915
C19: ger i bar | D19: =D18/D16 -> 150 | E19: bar | L19: 0.8 | M19: 8 | N19: 33.17647059 | O19: 1.241134752 | P19: 1.353151772 | Q19: 3.289007092 | R19: 3.289007092 | S19: 3.374852758 | T19: 3.585852195 | U19: 3.585852195 | V19: 3.679445751 | AG19: =OFFSET(R19,0,'Unit conv'!$B$34,1,1) -> 3.289007092 | AH19: =OFFSET(S19,0,'Unit conv'!$B$34,1,1) -> 3.374852758
C20: Fjädertryck ur tabell | D20: =Calculator!P2 -> 150 | E20: bar | L20: 0.9 | M20: 9 | N20: 32.17647059 | O20: 1.279707495 | P20: 1.412391187 | Q20: 3.391224863 | R20: 3.391224863 | S20: 3.479738493 | T20: 3.742836647 | U20: 3.742836647 | V20: 3.84052762 | AG20: =OFFSET(R20,0,'Unit conv'!$B$34,1,1) -> 3.391224863 | AH20: =OFFSET(S20,0,'Unit conv'!$B$34,1,1) -> 3.479738493
L21: 1 | M21: 10 | N21: 31.17647059 | O21: 1.320754717 | P21: 1.476219843 | Q21: 3.5 | R21: 3.5 | S21: 3.591352746 | T21: 3.911982583 | U21: 3.911982583 | V21: 4.014088398 | AG21: =OFFSET(R21,0,'Unit conv'!$B$34,1,1) -> 3.5 | AH21: =OFFSET(S21,0,'Unit conv'!$B$34,1,1) -> 3.591352746
C22: Isotermt är Vi/Vf=(Ff/Fi) | H22: Vi/Vf = (Ff/Fi)^(1/1,4)
C24: Ff/Fi = Vi/Vf = k | D24: =D10/D9 -> 1.320754717
C26: l = k*s / (k-1) | D26: =(D24*D11)/(D24-1) -> 41.17647059 | E26: mm | F26: Virtuell volym, Viv
D28: =D26-D11 -> 31.17647059 | E28: mm | F28: Virtuell slutvolym, Vfv
C30: Slutvolym, utnyttjad slagl | D30: =D26-D14 -> 31.17647059 | E30: mm | F30: Virtuell slutvolym för utnyttjad slagl, Vfvny
C32: nytt Viny / Vfny | D32: =D26/D30 -> 1.320754717
C35: kappa | D35: 1.4
C36: kraft och tryckfaktor (Viny / Vfny)^kappa | D36: =D32^D35 -> 1.476219843 | E36: Detta ska tas multiplicerat med Fi eller Pi
D38: =D9*D36 -> 3911.982583
C42: ger sluttryck | D42: =D19*D36 -> 221.4329764
C44: Fyllutnyttande | D44: =D19/D20 -> 1
C45: Ger initialkraft | D45: =D44*D9*0.001*D17 -> 2.65 | E45: =E17 -> kN
C46: Ger initailalkraft totalt | D46: =$AH$11 -> 2.719167079 | E46: =E17 -> kN
C47: ger slutkraft per fjäder | D47: =D9*D32*D44*0.001*D17 -> 3.5 | E47: Isotermt
C48: Ger slutkraft totalt | D48: =$AH$21 -> 3.591352746
C49: Utnyttjad slaglängd
C51: Felmeddelande om för lång slaglängd | D51: =IF(D12>D11,"Used stroke length is more than 100%!","") -> 
E56: Utput till annan flik

Sheet Tempdatabladet (hidden)
A1: Nya kolumner | C1: Gröna kolumner visas i databladet
F3: Kolumn F
F4: Tagit bort listboxarna/MC
AG6: Införs i steg
C7: T4SC- | D7: CU4 | F7: Strokelength | G7: Utilized | H7: Fill pressure | I7: Frequency | J7: Env./Tool | K7: Env./Tool | L7: Env./Tool | P7: Estimated running | R7: =P7 -> Estimated running | V7: F° env./tool | AB7: =P7 -> Estimated running | AG7: 1
G8: strokelength | J8: temperature | K8: temperature | L8: temperature | M8: Rörlängd | N8: Röryta | O8: Fjäderfaktor | P8: temperature between: | R8: temperature between: | V8: temp. | AB8: =P8 -> temperature between: | AG8: 1
C9: Spring Size | D9: Spring Size | G9: [mm] | H9: [Bar] | I9: [spm] | J9: [°C] | K9: [°F] | L9: [°C] | M9: L (approx) | N9: A | O9: Kf | P9: [°C] | Q9: [°C] | R9: [°C] | S9: [°C] | T9: P som [°F] | U9: Q som [°F] | V9: to C° | W9: N + T | X9: U + 10°C | Y9: U to F° | Z9: V to F° | AA9: [°F] | AB9: [°F] | AC9: [°C] | AD9: [°C] | AG9: 1
A10: =CONCATENATE("CU4"," ",D10) -> CU4 420 | C10: 420 | D10: 420 | F10: =Calculator!$M$2 -> 10 | G10: =Fjäderkurva!$D$14 -> 10 | H10: =Fjäderkurva!$D$19 -> 150 | I10: =Calculator!$X$19 -> 20 | J10: =Calculator!$X$20 -> 20 | K10: 77 | L10: =5/9*(K10-32) -> 25 | M10: =39.1+2.146*F10 -> 60.56 | N10: =24.9*PI()*M10*0.01 -> 47.37345792 | O10: =0.49+0.017*F10-0.00037*F10^2 -> 0.623 | P10: =G10*H10*I10*(G10/F10)^1.1/(150*N10*O10)+J10 -> 26.77652216 | Q10: =P10+10 -> 36.77652216 | R10: 26.77652216 | S10: 36.77652216 | T10: =9/5*R10+32 -> 80.19773988 | U10: =9/5*S10+32 -> 98.19773988 | V10: =5/9*(K10-32) -> 25 | W10: =P10+V10 -> 51.77652216 | X10: =W10+10 -> 61.77652216 | Y10: =9/5*W10+32 -> 125.1977399 | Z10: =9/5*X10+32 -> 143.1977399 | AA10: =Y10 -> 125.1977399 | AB10: 143.1977399 | AC10: =5/9*(AA10-32) -> 51.77652216 | AD10: =5/9*(AB10-32) -> 61.77652216 | AE10: =IF(Q10>80,"High temp. Please contact your distributor for advice",IF(H10>150,"Too high charging pressure!","")) ->  | AF10: =AE10 ->  | AG10: 1 | AH10: Samma som CU | AN10: 33 | AO10: 43
A11: =CONCATENATE("CU4"," ",D11) -> CU4 740 | C11: 740 | D11: 740 | F11: =Calculator!$M$2 -> 10 | G11: =Fjäderkurva!$D$14 -> 10 | H11: =Fjäderkurva!$D$19 -> 150 | I11: =Calculator!$X$19 -> 20 | J11: =Calculator!$X$20 -> 20 | K11: 77 | L11: =5/9*(K11-32) -> 25 | M11: =45+2*F11 -> 65 | N11: =32*PI()*M11*0.01 -> 65.34512719 | O11: =2.5-0.039*F11 -> 2.11 | P11: =G11*H11*I11*(G11/F11)^1.1/(150*N11*O11)+J11 -> 21.45055544 | Q11: 31.45055544 | R11: 21.45055544 | S11: 31.45055544 | T11: =9/5*R11+32 -> 70.6109998 | U11: 88.6109998 | V11: =5/9*(K11-32) -> 25 | W11: =P11+V11 -> 46.45055544 | X11: =W11+10 -> 56.45055544 | Y11: =9/5*W11+32 -> 115.6109998 | Z11: 133.6109998 | AA11: 115.6109998 | AB11: 133.6109998 | AC11: =5/9*(AA11-32) -> 46.45055544 | AD11: 56.45055544 | AF11: =AE11 ->  | AG11: 1 | AH11: Samma som CU | AN11: 30 | AO11: 40
A12: CU4 1000 | C12: 1000 | D12: 1000 | F12: =Calculator!$M$2 -> 10 | G12: =Fjäderkurva!$D$14 -> 10 | H12: =Fjäderkurva!$D$19 -> 150 | I12: =Calculator!$X$19 -> 20 | J12: =Calculator!$X$20 -> 20 | K12: 77 | L12: 25 | M12: =38.9+2.88*F12 -> 67.7 | N12: =37.9*PI()*M12*0.01 -> 80.60792678 | O12: =0.8248-0.002*F12 -> 0.8048 | P12: 23.08293435 | Q12: 33.08293435 | R12: 23.08293435 | S12: 33.08293435 | T12: 73.54928183 | U12: 91.54928183 | V12: 25 | W12: 48.08293435 | X12: 58.08293435 | Y12: 118.5492818 | Z12: 136.5492818 | AA12: 118.5492818 | AB12: 136.5492818 | AC12: 48.08293435 | AD12: 58.08293435 | AG12: 1 | AH12: Samma som CU | AN12: 28 | AO12: 38
A13: CU4 1800 | C13: 1800 | D13: 1800 | F13: =Calculator!$M$2 -> 10 | G13: =Fjäderkurva!$D$14 -> 10 | H13: =Fjäderkurva!$D$19 -> 150 | I13: =Calculator!$X$19 -> 20 | J13: =Calculator!$X$20 -> 20 | K13: 77 | L13: 25 | M13: =46.6+2.535*F13 -> 71.95 | N13: =50.2*PI()*M13*0.01 -> 113.4708709 | O13: =0.8713-0.0118*F13 -> 0.7533 | P13: 22.33979409 | Q13: 32.33979409 | R13: 22.33979409 | S13: 32.33979409 | T13: 72.21162937 | U13: 90.21162937 | V13: 25 | W13: 47.33979409 | X13: 57.33979409 | Y13: 117.2116294 | Z13: 135.2116294 | AA13: 117.2116294 | AB13: 135.2116294 | AC13: 47.33979409 | AD13: 57.33979409 | AG13: 1 | AH13: Samma som CU + slagl. 65 | AN13: 30 | AO13: 40
A14: CU4 2900 | C14: 2900 | D14: 2900 | F14: =Calculator!$M$2 -> 10 | G14: =Fjäderkurva!$D$14 -> 10 | H14: =Fjäderkurva!$D$19 -> 150 | I14: =Calculator!$X$19 -> 20 | J14: =Calculator!$X$20 -> 20 | K14: 77 | L14: 25 | M14: =55+2*F14 -> 75 | N14: =63.2*PI()*M14*0.01 -> 148.9114918 | O14: =1.2-0.0181*F14 -> 1.019 | P14: 21.31803699 | Q14: 31.31803699 | R14: 21.31803699 | S14: 31.31803699 | T14: 70.37246657 | U14: 88.37246657 | V14: 25 | W14: 46.31803699 | X14: 56.31803699 | Y14: 115.3724666 | Z14: 133.3724666 | AA14: 115.3724666 | AB14: 133.3724666 | AC14: 46.31803699 | AD14: 56.31803699 | AG14: 1 | AH14: Samma som CU + slagl. 65 | AN14: 29 | AO14: 39
A15: CU4 4700 | C15: 4700 | D15: 4700 | F15: =Calculator!$M$2 -> 10 | G15: =Fjäderkurva!$D$14 -> 10 | H15: =Fjäderkurva!$D$19 -> 150 | I15: =Calculator!$X$19 -> 20 | J15: =Calculator!$X$20 -> 20 | K15: 77 | L15: 25 | M15: =40+3*F15 -> 70 | N15: =75.2*PI()*M15*0.01 -> 165.3734373 | O15: 0.43 | P15: 22.81252108 | Q15: 32.81252108 | R15: 22.81252108 | S15: 32.81252108 | T15: 73.06253795 | U15: 91.06253795 | V15: 25 | W15: 47.81252108 | X15: 57.81252108 | Y15: 118.062538 | Z15: 136.062538 | AA15: 118.062538 | AB15: 136.062538 | AC15: 47.81252108 | AD15: 57.81252108 | AG15: 1 | AH15: Samma som CU + slagl. 65 | AN15: 27 | AO15: 37
A16: CU4 7500 | C16: 7500 | D16: 7500 | F16: =Calculator!$M$2 -> 10 | G16: =Fjäderkurva!$D$14 -> 10 | H16: =Fjäderkurva!$D$19 -> 150 | I16: =Calculator!$X$19 -> 20 | J16: =Calculator!$X$20 -> 20 | K16: 77 | L16: 25 | M16: =50+3*F16 -> 80 | N16: =95.2*PI()*M16*0.01 -> 239.2636965 | O16: 0.3 | P16: 22.78632603 | Q16: 32.78632603 | R16: 22.78632603 | S16: 32.78632603 | T16: 73.01538686 | U16: 91.01538686 | V16: 25 | W16: 47.78632603 | X16: 57.78632603 | Y16: 118.0153869 | Z16: 136.0153869 | AA16: 118.0153869 | AB16: 136.0153869 | AC16: 47.78632603 | AD16: 57.78632603 | AG16: 1 | AH16: Samma som CU + slagl. 65 | AN16: 27 | AO16: 37
A17: CU4 11800 | C17: 11800 | D17: 11800 | F17: =Calculator!$M$2 -> 10 | G17: =Fjäderkurva!$D$14 -> 10 | H17: =Fjäderkurva!$D$19 -> 150 | I17: =Calculator!$X$19 -> 20 | J17: =Calculator!$X$20 -> 20 | K17: 77 | L17: 25 | M17: =60+3*F17 -> 90 | N17: =120.2*PI()*M17*0.01 -> 339.8574933 | O17: =0.247-0.0023*F17 -> 0.224 | P17: 22.62715156 | Q17: 32.62715156 | R17: 22.62715156 | S17: 32.62715156 | T17: 72.7288728 | U17: 90.7288728 | V17: 25 | W17: 47.62715156 | X17: 57.62715156 | Y17: 117.7288728 | Z17: 135.7288728 | AA17: 117.7288728 | AB17: 135.7288728 | AC17: 47.62715156 | AD17: 57.62715156 | AG17: 1 | AH17: Samma som CU + slagl. 65 | AN17: 29 | AO17: 39
A18: CU4 18300 | C18: 18300 | D18: 18300 | F18: =Calculator!$M$2 -> 10 | G18: =Fjäderkurva!$D$14 -> 10 | H18: =Fjäderkurva!$D$19 -> 150 | I18: =Calculator!$X$19 -> 20 | J18: =Calculator!$X$20 -> 20 | K18: 77 | L18: 25 | M18: =70+3*F18 -> 100 | N18: =150.2*PI()*M18*0.01 -> 471.8672166 | O18: =0.25-0.0011*F18 -> 0.239 | P18: 21.77342281 | Q18: 31.77342281 | R18: 21.77342281 | S18: 31.77342281 | T18: 71.19216105 | U18: 89.19216105 | V18: 25 | W18: 46.77342281 | X18: 56.77342281 | Y18: 116.1921611 | Z18: 134.1921611 | AA18: 116.1921611 | AB18: 134.1921611 | AC18: 46.77342281 | AD18: 56.77342281 | AG18: 1 | AH18: Samma som CU + slagl. 65 | AN18: 27 | AO18: 37
C21: T5- | D21: CX | F21: Strokelength | G21: Utilized | H21: Fill pressure | I21: Frequency | J21: Env./Tool | K21: Env./Tool | L21: Env./Tool | P21: Estimated running | R21: =P21 -> Estimated running | V21: F° env./tool | AB21: =P21 -> Estimated running | AG21: 1
G22: strokelength | J22: temperature | K22: temperature | L22: temperature | P22: temperature between: | R22: temperature between: | V22: temp. | AB22: =P22 -> temperature between: | AG22: 1
C23: Spring Size | D23: Spring Size | G23: [mm] | H23: [Bar] | I23: [spm] | J23: [°C] | K23: [°F] | L23: [°C] | P23: [°C] | Q23: [°C] | R23: [°C] | S23: =Q23 -> [°C] | T23: P som [°F] | U23: Q som [°F] | V23: to C° | W23: N + T | X23: U + 10°C | Y23: U to F° | Z23: V to F° | AA23: [°F] | AB23: [°F] | AC23: [°C] | AD23: [°C] | AG23: 1
A24: =CONCATENATE("CX"," ",D24) -> CX 500 | C24: 500 | D24: 500 | F24: =Calculator!$M$2 -> 10 | G24: =Fjäderkurva!$D$14 -> 10 | H24: =Fjäderkurva!$D$19 -> 150 | I24: =Calculator!$X$19 -> 20 | J24: =Calculator!$X$20 -> 20 | K24: 77 | L24: 25 | P24: =0.8*(75*(I24/((IF(F24=10,26834,(IF(F24=15,28528,(IF(F24=25,30815,(IF(F24=38,32827,(IF(F24=50,34215,(IF(F24=63,35431,(IF(F24=80,36732,0))))))))))))))*G24^-1.65))*(H24/185)^1.4)+J24 -> 21.48930337 | Q24: =P24+10 -> 31.48930337 | R24: 21.48930337 | S24: =Q24 -> 31.48930337 | T24: 70.68074607 | U24: 88.68074607 | V24: =5/9*(K24-32) -> 25 | W24: =P24+V24 -> 46.48930337 | X24: 56.48930337 | Y24: =9/5*W24+32 -> 115.6807461 | Z24: 133.6807461 | AA24: 115.6807461 | AB24: 133.6807461 | AC24: 46.48930337 | AD24: 56.48930337 | AE24: =IF(Q24>80,"High temp. Please contact your distributor for advice",IF(H24>200,"Too high charging pressure!","")) ->  | AG24: 1 | AH24: Värden från Avdo. 0,8 för att korrespondera mot graf i broschyren där hundra grader tillåts | AN24: 32 | AO24: 42
A25: =CONCATENATE("CX"," ",D25) -> CX 1000 | C25: 1000 | D25: 1000 | F25: =Calculator!$M$2 -> 10 | G25: =Fjäderkurva!$D$14 -> 10 | H25: =Fjäderkurva!$D$19 -> 150 | I25: =Calculator!$X$19 -> 20 | J25: =Calculator!$X$20 -> 20 | K25: 77 | L25: 25 | P25: =0.8*(75*(I25/((IF(F25=10,110943,(IF(F25=15,120314,(IF(F25=25,133256,(IF(F25=38,144895,(IF(F25=50,153071,(IF(F25=63,160312,(IF(F25=80,168157,0))))))))))))))*G25^-1.9))*(H25/120)^1.4)+J25 -> 21.17423591 | Q25: =P25+10 -> 31.17423591 | R25: 21.17423591 | S25: =Q25 -> 31.17423591 | T25: 70.11362464 | U25: 88.11362464 | V25: 25 | W25: 46.17423591 | X25: 56.17423591 | Y25: 115.1136246 | Z25: 133.1136246 | AA25: 115.1136246 | AB25: 133.1136246 | AC25: 46.17423591 | AD25: 56.17423591 | AE25: =IF(Q25>80,"High temp. Please contact your distributor for advice",IF(H25>200,"Too high charging pressure!","")) ->  | AG25: 1 | AH25: Värden från Avdo. 0,8 för att korrespondera mot graf i broschyren där hundra grader tillåts | AN25: 32 | AO25: 42
A26: CX 1900 | C26: 1900 | D26: 1900 | F26: =Calculator!$M$2 -> 10 | G26: =Fjäderkurva!$D$14 -> 10 | H26: =Fjäderkurva!$D$19 -> 150 | I26: =Calculator!$X$19 -> 20 | J26: =Calculator!$X$20 -> 20 | K26: 77 | L26: 25 | P26: =0.8*(75*(I26/((IF(F26=10,201684,(IF(F26=15,223653,(IF(F26=25,254769,(IF(F26=38,283476,(IF(F26=50,304025,(IF(F26=63,322480,(IF(F26=80,342736,0))))))))))))))*G26^-2.25))*(H26/165)^1.4)+J26 -> 20.92589138 | Q26: =P26+10 -> 30.92589138 | R26: 20.92589138 | S26: =Q26 -> 30.92589138 | T26: 69.66660448 | U26: 87.66660448 | V26: 25 | W26: 45.92589138 | X26: 55.92589138 | Y26: 114.6666045 | Z26: 132.6666045 | AA26: 114.6666045 | AB26: 132.6666045 | AC26: 45.92589138 | AD26: 55.92589138 | AE26: =IF(Q26>80,"High temp. Please contact your distributor for advice",IF(H26>200,"Too high charging pressure!","")) ->  | AG26: 1 | AH26: Värden från Avdo. 0,8 för att korrespondera mot graf i broschyren där hundra grader tillåts | AN26: 34 | AO26: 44
C29: T2L- | D29: K | F29: Strokelength | G29: Utilized | H29: Fill pressure | I29: Frequency | J29: Env./Tool | K29: Env./Tool | L29: Env./Tool | P29: Estimated running | R29: =P29 -> Estimated running | V29: F° env./tool | AB29: =P29 -> Estimated running | AG29: 1
G30: strokelength | J30: temperature | K30: temperature | L30: temperature | M30: Fjäderfaktor | N30: Tryckfaktor | O30: Slagfaktor | P30: temperature between: | R30: temperature between: | V30: temp. | AB30: =P30 -> temperature between: | AG30: 1
C31: Spring Size | D31: Spring Size | G31: [mm] | H31: [Bar] | I31: [spm] | J31: [°C] | K31: [°F] | L31: [°C] | M31: K1 | N31: Kp | O31: Ks | P31: [°C] | Q31: [°C] | R31: [°C] | S31: =Q31 -> [°C] | T31: P som [°F] | U31: Q som [°F] | V31: to C° | W31: N + T | X31: U + 10°C | Y31: U to F° | Z31: V to F° | AA31: [°F] | AB31: [°F] | AC31: [°C] | AD31: [°C] | AG31: 1
A32: K 500 | C32: 500 | D32: K500 | F32: =Calculator!$M$2 -> 10 | G32: =Fjäderkurva!$D$14 -> 10 | H32: =Fjäderkurva!$D$19 -> 150 | I32: =Calculator!$X$19 -> 20 | J32: =Calculator!$X$20 -> 20 | K32: 77 | L32: 25 | M32: =0.00000157*F32^2-0.00026*F32+0.0139 -> 0.011457 | N32: =0.2*(H32/150)^2+0.3*(H32/150)+0.5 -> 1 | O32: =0.1554*EXP(1.7*(G32/F32))+0.15 -> 1.000651425 | P32: =F32*I32*M32*N32*O32+J32 -> 22.29289267 | Q32: =P32+10 -> 32.29289267 | R32: 22.29289267 | S32: =Q32 -> 32.29289267 | T32: 72.12720681 | U32: 90.12720681 | V32: 25 | W32: 47.29289267 | X32: 57.29289267 | Y32: 117.1272068 | Z32: 135.1272068 | AA32: 117.1272068 | AB32: 135.1272068 | AC32: 47.29289267 | AD32: 57.29289267 | AE32: =IF(Q32>80,"High temp. Please contact your distributor for advice",IF(H32>150,"Too high charging pressure!","")) ->  | AG32: 1 | AH32: Samma värden som KS idag | AN32: 28 | AO32: 38
A33: K 750 | C33: 750 | D33: K750 | F33: =Calculator!$M$2 -> 10 | G33: =Fjäderkurva!$D$14 -> 10 | H33: =Fjäderkurva!$D$19 -> 150 | I33: =Calculator!$X$19 -> 20 | J33: =Calculator!$X$20 -> 20 | K33: 77 | L33: 25 | M33: =0.0000020455*F33^2-0.00037599*F33+0.02 -> 0.01644465 | N33: =0.3*(H33/150)^2+0.3*(H33/150)+0.4 -> 1 | O33: =0.1564*EXP(1.75*(G33/F33))+0.1 -> 1.000019859 | P33: =F33*I33*M33*N33*O33+J33 -> 23.28899531 | Q33: =P33+10 -> 33.28899531 | R33: 23.28899531 | S33: =Q33 -> 33.28899531 | T33: 73.92019156 | U33: 91.92019156 | V33: 25 | W33: 48.28899531 | X33: 58.28899531 | Y33: 118.9201916 | Z33: 136.9201916 | AA33: 118.9201916 | AB33: 136.9201916 | AC33: 48.28899531 | AD33: 58.28899531 | AE33: =IF(Q33>80,"High temp. Please contact your distributor for advice",IF(H33>150,"Too high charging pressure!","")) ->  | AG33: 1 | AH33: Samma värden som KS idag | AN33: 27 | AO33: 37
A34: K1500 | C34: 1500 | D34: K1500 | F34: =Calculator!$M$2 -> 10 | G34: =Fjäderkurva!$D$14 -> 10 | H34: =Fjäderkurva!$D$19 -> 150 | I34: =Calculator!$X$19 -> 20 | J34: =Calculator!$X$20 -> 20 | K34: 77 | L34: 25 | M34: =-0.00000035*F34^2+0.000016*F34+0.0097 -> 0.009825 | N34: =0.65*(H34/150)^2+0.06*(H34/150)+0.29 -> 1 | O34: =0.0699*EXP(2.6*(G34/F34))+0.059 -> 1.000115289 | P34: =F34*I34*M34*N34*O34+J34 -> 21.96522654 | Q34: =P34+10 -> 31.96522654 | R34: 21.96522654 | S34: =Q34 -> 31.96522654 | T34: 71.53740778 | U34: 89.53740778 | V34: 25 | W34: 46.96522654 | X34: 56.96522654 | Y34: 116.5374078 | Z34: 134.5374078 | AA34: 116.5374078 | AB34: 134.5374078 | AC34: 46.96522654 | AD34: 56.96522654 | AE34: =IF(Q34>80,"High temp. Please contact your distributor for advice",IF(H34>150,"Too high charging pressure!","")) ->  | AG34: 1 | AH34: Samma värden som idag | AN34: 31 | AO34: 41
C37: T2 LCF | D37: LCF | F37: Strokelength | G37: Utilized | H37: Fill pressure | I37: Frequency | J37: Env./Tool | K37: Env./Tool | L37: Env./Tool | P37: Estimated running | R37: =P37 -> Estimated running | V37: F° env./tool | AB37: =P37 -> Estimated running | AG37: 2
G38: strokelength | J38: temperature | K38: temperature | L38: temperature | M38: Fjäderfaktor | N38: Tryckfaktor | O38: Slagfaktor | P38: temperature between: | R38: temperature between: | V38: temp. | AB38: =P38 -> temperature between: | AG38: 2
C39: Spring Size | D39: Spring Size | G39: [mm] | H39: [Bar] | I39: [spm] | J39: [°C] | K39: [°F] | L39: [°C] | M39: K1 | N39: Kp | O39: Ks | P39: [°C] | Q39: [°C] | R39: [°C] | S39: [°C] | T39: P som [°F] | U39: Q som [°F] | V39: to C° | W39: N + T | X39: U + 10°C | Y39: U to F° | Z39: V to F° | AA39: [°F] | AB39: [°F] | AC39: [°C] | AD39: [°C] | AG39: 2
A40: =CONCATENATE("LCF"," ",D40) -> LCF 750 | C40: 750 | D40: 750 | F40: =Calculator!$M$2 -> 10 | G40: =Fjäderkurva!$D$14 -> 10 | H40: =Fjäderkurva!$D$19 -> 150 | I40: =Calculator!$X$19 -> 20 | J40: =Calculator!$X$20 -> 20 | K40: 77 | L40: 25 | M40: =-0.0000002*F40^2+0.00005*F40+0.0132 -> 0.01368 | N40: =0.88*(H40/150)+0.12 -> 1 | O40: =0.3551*(G40/F40)^2+0.5449*(G40/F40)+0.1 -> 1 | P40: =F40*I40*M40*N40*O40+J40-2 -> 20.736 | Q40: =P40+10 -> 30.736 | R40: 20.736 | S40: 30.736 | T40: 69.3248 | U40: 87.3248 | V40: 25 | W40: 45.736 | X40: 55.736 | Y40: 114.3248 | Z40: 132.3248 | AA40: 114.3248 | AB40: 132.3248 | AC40: 45.736 | AD40: 55.736 | AE40: =IF(Q40>80,"High temp. Please contact your distributor for advice",IF(H40>150,"Too high charging pressure!","")) ->  | AG40: 2 | AH40: Samma värden som TU | AN40: 37 | AO40: 47
A41: =CONCATENATE("LCF"," ",D41) -> LCF 1500 | C41: 1500 | D41: 1500 | F41: =Calculator!$M$2 -> 10 | G41: =Fjäderkurva!$D$14 -> 10 | H41: =Fjäderkurva!$D$19 -> 150 | I41: =Calculator!$X$19 -> 20 | J41: =Calculator!$X$20 -> 20 | K41: 77 | L41: 25 | M41: =-0.00000015*F41^2+0.000027*F41+0.0145 -> 0.014755 | N41: =0.88*(H41/150)+0.12 -> 1 | O41: =0.82*(G41/F41)^2+0.075*(G41/F41)+0.1 -> 0.995 | P41: =F41*I41*M41*N41*O41+J41 -> 22.936245 | Q41: =P41+10 -> 32.936245 | R41: 22.936245 | S41: 32.936245 | T41: 73.285241 | U41: 91.285241 | V41: 25 | W41: 47.936245 | X41: 57.936245 | Y41: 118.285241 | Z41: 136.285241 | AA41: 118.285241 | AB41: 136.285241 | AC41: 47.936245 | AD41: 57.936245 | AE41: =IF(Q41>80,"High temp. Please contact your distributor for advice",IF(H41>150,"Too high charging pressure!","")) ->  | AG41: 2 | AH41: Samma värden som TU | AN41: 38 | AO41: 48
A42: LCF 3000 | C42: 3000 | D42: 3000 | F42: =Calculator!$M$2 -> 10 | G42: =Fjäderkurva!$D$14 -> 10 | H42: =Fjäderkurva!$D$19 -> 150 | I42: =Calculator!$X$19 -> 20 | J42: =Calculator!$X$20 -> 20 | K42: 77 | L42: 25 | M42: =0.00000005*F42^2-0.000034*F42+0.0186 -> 0.018265 | N42: =0.75*(H42/150)+0.25 -> 1 | O42: =0.82*(G42/F42)^2+0.075*(G42/F42)+0.1 -> 0.995 | P42: =F42*I42*M42*N42*O42+J42 -> 23.634735 | Q42: =P42+10 -> 33.634735 | R42: 23.634735 | S42: 33.634735 | T42: 74.542523 | U42: 92.542523 | V42: 25 | W42: 48.634735 | X42: 58.634735 | Y42: 119.542523 | Z42: 137.542523 | AA42: 119.542523 | AB42: 137.542523 | AC42: 48.634735 | AD42: 58.634735 | AE42: =IF(Q42>80,"High temp. Please contact your distributor for advice",IF(H42>150,"Too high charging pressure!","")) ->  | AG42: 2 | AH42: Samma värden som TU | AN42: 38 | AO42: 48
A43: LCF 5000 | C43: 5000 | D43: 5000 | F43: =Calculator!$M$2 -> 10 | G43: =Fjäderkurva!$D$14 -> 10 | H43: =Fjäderkurva!$D$19 -> 150 | I43: =Calculator!$X$19 -> 20 | J43: =Calculator!$X$20 -> 20 | K43: 77 | L43: 25 | M43: =-0.000003*F43+0.0155 -> 0.01547 | N43: =0.89*(H43/150)+0.11 -> 1 | O43: =0.82*(G43/F43)^2+0.075*(G43/F43)+0.1 -> 0.995 | P43: =F43*I43*M43*N43*O43+J43 -> 23.07853 | Q43: =P43+10 -> 33.07853 | R43: 23.07853 | S43: 33.07853 | T43: 73.541354 | U43: 91.541354 | V43: 25 | W43: 48.07853 | X43: 58.07853 | Y43: 118.541354 | Z43: 136.541354 | AA43: 118.541354 | AB43: 136.541354 | AC43: 48.07853 | AD43: 58.07853 | AE43: =IF(Q43>80,"High temp. Please contact your distributor for advice",IF(H43>150,"Too high charging pressure!","")) ->  | AG43: 2 | AH43: Samma värden som TU | AN43: 38 | AO43: 48
A44: LCF 7500 | C44: 7500 | D44: 7500 | F44: =Calculator!$M$2 -> 10 | G44: =Fjäderkurva!$D$14 -> 10 | H44: =Fjäderkurva!$D$19 -> 150 | I44: =Calculator!$X$19 -> 20 | J44: =Calculator!$X$20 -> 20 | K44: 77 | L44: 25 | M44: =-0.000018*F44+0.025 -> 0.02482 | N44: =0.85*(H44/150)+0.15 -> 1 | O44: =0.82*(G44/F44)^2+0.075*(G44/F44)+0.1 -> 0.995 | P44: =F44*I44*M44*N44*O44+J44 -> 24.93918 | Q44: =P44+10 -> 34.93918 | R44: 24.93918 | S44: 34.93918 | T44: 76.890524 | U44: 94.890524 | V44: 25 | W44: 49.93918 | X44: 59.93918 | Y44: 121.890524 | Z44: 139.890524 | AA44: 121.890524 | AB44: 139.890524 | AC44: 49.93918 | AD44: 59.93918 | AE44: =IF(Q44>80,"High temp. Please contact your distributor for advice",IF(H44>150,"Too high charging pressure!","")) ->  | AG44: 2 | AH44: Samma värden som TU | AN44: 44 | AO44: 54
C47: T2-180 | D47: M2 | F47: Strokelength | G47: Utilized | H47: Fill pressure | I47: Frequency | J47: Env./Tool | K47: Env./Tool | L47: Env./Tool | P47: Estimated running | R47: =P47 -> Estimated running | V47: F° env./tool | AB47: =P47 -> Estimated running | AG47: 2
G48: strokelength | J48: temperature | K48: temperature | L48: temperature | N48: Tryck-och | P48: temperature between: | R48: =P48 -> temperature between: | V48: temp. | AB48: =P48 -> temperature between: | AG48: 2
C49: Spring Size | D49: Spring Size | G49: [mm] | H49: [Bar] | I49: [spm] | J49: [°C] | K49: [°F] | L49: [°C] | M49: Slaglängdsfaktor | N49: SPM-faktor | O49: %-faktor | P49: [°C] | Q49: [°C] | R49: =P49 -> [°C] | S49: =Q49 -> [°C] | T49: P som [°F] | U49: Q som [°F] | V49: to C° | W49: N + T | X49: U + 10°C | Y49: U to F° | Z49: V to F° | AA49: [°F] | AB49: [°F] | AC49: [°C] | AD49: [°C] | AG49: 2
A50: M2 | C50: T2-180 | D50: M2 | F50: =Calculator!$M$2 -> 10 | G50: =Fjäderkurva!$D$14 -> 10 | H50: =Fjäderkurva!$D$19 -> 150 | I50: =Calculator!$X$19 -> 20 | J50: =Calculator!$X$20 -> 20 | K50: 77 | L50: 25 | M50: =-0.000620370414004661*F50^2+0.268331957994321*F50+0.785664791280596 -> 3.40694733 | N50: =(-0.000399199129692736*H50^2+0.164059801283639*H50+1.91164754348779)*(0.00709866427117971*I50^2-0.480884167541125*I50+16.1629135875712) -> 164.5947785 | O50: =0.00174145400538405*(100*G50/F50)^2-0.0253949962177752*(100*G50/F50)+6.92530631030808 -> 21.80034674 | P50: =((M50*N50*O50)*0.000200885124608251+3.84189422736609)+J50 -> 26.2976923 | Q50: =P50+10 -> 36.2976923 | R50: =P50 -> 26.2976923 | S50: =Q50 -> 36.2976923 | T50: 79.33584613 | U50: 97.33584613 | V50: 25 | W50: 51.2976923 | X50: 61.2976923 | Y50: 124.3358461 | Z50: 142.3358461 | AA50: 124.3358461 | AB50: 142.3358461 | AC50: 51.2976923 | AD50: 61.2976923 | AE50: =IF(Q50>80,"High temp. Please contact your distributor for advice",IF(H50>180,"Too high charging pressure!","")) ->  | AG50: 2 | AH50: Nya tester | AN50: 56 | AO50: 66
C53: T2-200 | D53: MC3 | F53: Strokelength | G53: Utilized | H53: Fill pressure | I53: Frequency | J53: Env./Tool | K53: Env./Tool | L53: Env./Tool | P53: Estimated running | R53: =P53 -> Estimated running | V53: F° env./tool | AB53: =P53 -> Estimated running | AG53: 2
G54: strokelength | J54: temperature | K54: temperature | L54: temperature | N54: Tryck-och | P54: temperature between: | R54: =P54 -> temperature between: | V54: temp. | AB54: =P54 -> temperature between: | AG54: 2
C55: Spring Size | D55: Spring Size | G55: [mm] | H55: [Bar] | I55: [spm] | J55: [°C] | K55: [°F] | L55: [°C] | M55: Slaglängdsfaktor | N55: SPM-faktor | O55: %-faktor | P55: [°C] | Q55: [°C] | R55: =P55 -> [°C] | S55: =Q55 -> [°C] | T55: P som [°F] | U55: Q som [°F] | V55: to C° | W55: N + T | X55: U + 10°C | Y55: U to F° | Z55: V to F° | AA55: [°F] | AB55: [°F] | AC55: [°C] | AD55: [°C] | AG55: 2
A56: MC3 | C56: T2-200 | D56: MC3 | F56: =Calculator!$M$2 -> 10 | G56: =Fjäderkurva!$D$14 -> 10 | H56: =Fjäderkurva!$D$19 -> 150 | I56: =Calculator!$X$19 -> 20 | J56: =Calculator!$X$20 -> 20 | K56: 77 | L56: 25 | M56: =-0.000620370414004661*F56^2+0.268331957994321*F56+0.785664791280596 -> 3.40694733 | N56: =(-0.000399199129692736*H56^2+0.164059801283639*H56+1.91164754348779)*(0.00709866427117971*I56^2-0.480884167541125*I56+16.1629135875712) -> 164.5947785 | O56: =0.00174145400538405*(100*G56/F56)^2-0.0253949962177752*(100*G56/F56)+6.92530631030808 -> 21.80034674 | P56: =(((M56*N56*O56)*0.000200885124608251+3.84189422736609)*0.9)+J56 -> 25.66792307 | Q56: =P56+10 -> 35.66792307 | R56: =P56 -> 25.66792307 | S56: =Q56 -> 35.66792307 | T56: 78.20226152 | U56: 96.20226152 | V56: 25 | W56: 50.66792307 | X56: 60.66792307 | Y56: 123.2022615 | Z56: 141.2022615 | AA56: 123.2022615 | AB56: 141.2022615 | AC56: 50.66792307 | AD56: 60.66792307 | AE56: =IF(Q56>80,"High temp. Please contact your distributor for advice",IF(H56>180,"Too high charging pressure!","")) ->  | AG56: 2 | AH56: Använd samma som M2 | AN56: 51 | AO56: 61
C59: T3- | D59: Power Line X | F59: Strokelength | G59: Utilized | H59: Fill pressure | I59: Frequency | J59: Env./Tool | K59: Env./Tool | L59: Env./Tool | P59: Estimated running | R59: =P59 -> Estimated running | V59: F° env./tool | AB59: =P59 -> Estimated running | AG59: 1
G60: strokelength | J60: temperature | K60: temperature | L60: temperature | M60: Fjäderfaktor | N60: Tryckfaktor | O60: Slagfaktor | P60: temperature between: | R60: temperature between: | V60: temp. | AB60: =P60 -> temperature between: | AG60: 1
C61: Spring Size | D61: Spring Size | G61: [mm] | H61: [Bar] | I61: [spm] | J61: [°C] | K61: [°F] | L61: [°C] | M61: K1 | N61: Kp | O61: Ks | P61: [°C] | Q61: [°C] | R61: [°C] | S61: [°C] | T61: P som [°F] | U61: Q som [°F] | V61: to C° | W61: N + T | X61: U + 10°C | Y61: U to F° | Z61: V to F° | AA61: [°F] | AB61: [°F] | AC61: [°C] | AD61: [°C] | AG61: 1
A62: =CONCATENATE("X"," ",D62) -> X 170 | C62: 170 | D62: 170 | F62: =Calculator!$M$2 -> 10 | G62: =Fjäderkurva!$D$14 -> 10 | H62: =Fjäderkurva!$D$19 -> 150 | I62: =Calculator!$X$19 -> 20 | J62: =Calculator!$X$20 -> 20 | K62: 77 | L62: 25 | M62: =0.0125 -> 0.0125 | N62: =0.88*(H62/180)+0.12 -> 0.8533333333 | O62: =(G62/F62)^1.15 -> 1 | P62: =F62*I62*M62*N62*O62+J62 -> 22.13333333 | Q62: =P62+10 -> 32.13333333 | R62: 22.13333333 | S62: 32.13333333 | T62: 71.84 | U62: 89.84 | V62: 25 | W62: 47.13333333 | X62: 57.13333333 | Y62: 116.84 | Z62: 134.84 | AA62: 116.84 | AB62: 134.84 | AC62: 47.13333333 | AD62: 57.13333333 | AE62: =IF(Q62>80,"High temp. Please contact your distributor for advice",IF(H62>180,"Too high charging pressure!","")) ->  | AG62: 1 | AH62: Samma värden som idag | AN62: 34 | AO62: 44
A63: =CONCATENATE("X"," ",D63) -> X 320 | C63: 320 | D63: 320 | F63: =Calculator!$M$2 -> 10 | G63: =Fjäderkurva!$D$14 -> 10 | H63: =Fjäderkurva!$D$19 -> 150 | I63: =Calculator!$X$19 -> 20 | J63: =Calculator!$X$20 -> 20 | K63: 77 | L63: 25 | M63: =-0.0000681414497203971*F63+0.023229141 -> 0.0225477265 | N63: =0.76*(H63/180)+0.24 -> 0.8733333333 | O63: 1 | P63: =F63*I63*M63*N63*O63+J63-2 -> 21.93833623 | Q63: =P63+10 -> 31.93833623 | R63: 21.93833623 | S63: 31.93833623 | T63: 71.48900521 | U63: 89.48900521 | V63: 25 | W63: 46.93833623 | X63: 56.93833623 | Y63: 116.4890052 | Z63: 134.4890052 | AA63: 116.4890052 | AB63: 134.4890052 | AC63: 46.93833623 | AD63: 56.93833623 | AE63: =IF(Q63>80,"High temp. Please contact your distributor for advice",IF(H63>180,"Too high charging pressure!","")) ->  | AG63: 1 | AH63: Samma värden som idag | AN63: 36 | AO63: 46
A64: X 350 | C64: 350 | D64: 350 | F64: =Calculator!$M$2 -> 10 | G64: =Fjäderkurva!$D$14 -> 10 | H64: =Fjäderkurva!$D$19 -> 150 | I64: =Calculator!$X$19 -> 20 | J64: =Calculator!$X$20 -> 20 | K64: 77 | L64: 25 | M64: =-0.0000557409944506719*F64+0.012735192 -> 0.01217778206 | N64: =0.78*(H64/180)+0.22 -> 0.87 | O64: 1 | P64: =F64*I64*M64*N64*O64+J64 -> 22.11893408 | Q64: 32.11893408 | R64: 22.11893408 | S64: 32.11893408 | T64: 71.81408134 | U64: 89.81408134 | V64: 25 | W64: 47.11893408 | X64: 57.11893408 | Y64: 116.8140813 | Z64: 134.8140813 | AA64: 116.8140813 | AB64: 134.8140813 | AC64: 47.11893408 | AD64: 57.11893408 | AE64: =IF(Q64>80,"High temp. Please contact your distributor for advice",IF(H64>180,"Too high charging pressure!","")) ->  | AG64: 1 | AH64: Samma värden som idag | AN64: 31 | AO64: 41
A65: X 500 | C65: 500 | D65: 500 | F65: =Calculator!$M$2 -> 10 | G65: =Fjäderkurva!$D$14 -> 10 | H65: =Fjäderkurva!$D$19 -> 150 | I65: =Calculator!$X$19 -> 20 | J65: =Calculator!$X$20 -> 20 | K65: 77 | L65: 25 | M65: =-0.0000286323189548996*F65+0.01030877 -> 0.01002244681 | N65: =0.69*(H65/150)+0.31 -> 1 | O65: 1 | P65: 22.00448936 | Q65: 32.00448936 | R65: 22.00448936 | S65: 32.00448936 | T65: 71.60808085 | U65: 89.60808085 | V65: 25 | W65: 47.00448936 | X65: 57.00448936 | Y65: 116.6080809 | Z65: 134.6080809 | AA65: 116.6080809 | AB65: 134.6080809 | AC65: 47.00448936 | AD65: 57.00448936 | AE65: =IF(Q65>80,"High temp. Please contact your distributor for advice",IF(H65>150,"Too high charging pressure!","")) ->  | AG65: 1 | AH65: Samma värden som idag | AN65: 32 | AO65: 42
A66: X 750 | C66: 750 | D66: 750 | F66: =Calculator!$M$2 -> 10 | G66: =Fjäderkurva!$D$14 -> 10 | H66: =Fjäderkurva!$D$19 -> 150 | I66: =Calculator!$X$19 -> 20 | J66: =Calculator!$X$20 -> 20 | K66: 77 | L66: 25 | M66: =-5.21759415768633E-06*F66+0.011064444 -> 0.01101226806 | N66: =0.7*(H66/150)+0.3 -> 1 | O66: 1 | P66: 22.20245361 | Q66: 32.20245361 | R66: 22.20245361 | S66: 32.20245361 | T66: 71.9644165 | U66: 89.9644165 | V66: 25 | W66: 47.20245361 | X66: 57.20245361 | Y66: 116.9644165 | Z66: 134.9644165 | AA66: 116.9644165 | AB66: 134.9644165 | AC66: 47.20245361 | AD66: 57.20245361 | AG66: 1 | AH66: Samma värden som idag | AN66: 34 | AO66: 44
A67: X 1000 | C67: 1000 | D67: 1000 | F67: =Calculator!$M$2 -> 10 | G67: =Fjäderkurva!$D$14 -> 10 | H67: =Fjäderkurva!$D$19 -> 150 | I67: =Calculator!$X$19 -> 20 | J67: =Calculator!$X$20 -> 20 | K67: 77 | L67: 25 | M67: =-3.37582158982632E-06*F67+0.012213964 -> 0.01218020578 | N67: =0.79*(H67/150)+0.21 -> 1 | O67: 1 | P67: 22.43604116 | Q67: 32.43604116 | R67: 22.43604116 | S67: 32.43604116 | T67: 72.38487408 | U67: 90.38487408 | V67: 25 | W67: 47.43604116 | X67: 57.43604116 | Y67: 117.3848741 | Z67: 135.3848741 | AA67: 117.3848741 | AB67: 135.3848741 | AC67: 47.43604116 | AD67: 57.43604116 | AG67: 1 | AH67: Samma värden som idag | AN67: 36 | AO67: 46
A68: X 1500 | C68: 1500 | D68: 1500 | F68: =Calculator!$M$2 -> 10 | G68: =Fjäderkurva!$D$14 -> 10 | H68: =Fjäderkurva!$D$19 -> 150 | I68: =Calculator!$X$19 -> 20 | J68: =Calculator!$X$20 -> 20 | K68: 77 | L68: 25 | M68: =-0.0000115814333465656*F68+0.0161709 -> 0.01605508567 | N68: =0.84*(H68/150)+0.16 -> 1 | O68: 1 | P68: 23.21101713 | Q68: 33.21101713 | R68: 23.21101713 | S68: 33.21101713 | T68: 73.77983084 | U68: 91.77983084 | V68: 25 | W68: 48.21101713 | X68: 58.21101713 | Y68: 118.7798308 | Z68: 136.7798308 | AA68: 118.7798308 | AB68: 136.7798308 | AC68: 48.21101713 | AD68: 58.21101713 | AG68: 1 | AH68: Samma värden som idag | AN68: 38 | AO68: 48
A69: X 2400 | C69: 2400 | D69: 2400 | F69: =Calculator!$M$2 -> 10 | G69: =Fjäderkurva!$D$14 -> 10 | H69: =Fjäderkurva!$D$19 -> 150 | I69: =Calculator!$X$19 -> 20 | J69: =Calculator!$X$20 -> 20 | K69: 77 | L69: 25 | M69: 0.01582 | N69: =0.87*(H69/150)+0.13 -> 1 | O69: 1 | P69: 23.164 | Q69: 33.164 | R69: 23.164 | S69: 33.164 | T69: 73.6952 | U69: 91.6952 | V69: 25 | W69: 48.164 | X69: 58.164 | Y69: 118.6952 | Z69: 136.6952 | AA69: 118.6952 | AB69: 136.6952 | AC69: 48.164 | AD69: 58.164 | AG69: 1 | AH69: Samma värden som idag | AN69: 39 | AO69: 49
A70: X 4200 | C70: 4200 | D70: 4200 | F70: =Calculator!$M$2 -> 10 | G70: =Fjäderkurva!$D$14 -> 10 | H70: =Fjäderkurva!$D$19 -> 150 | I70: =Calculator!$X$19 -> 20 | J70: =Calculator!$X$20 -> 20 | K70: 77 | L70: 25 | M70: 0.01369 | N70: =0.8*(H70/150)+0.2 -> 1 | O70: 1 | P70: 22.738 | Q70: 32.738 | R70: 22.738 | S70: 32.738 | T70: 72.9284 | U70: 90.9284 | V70: 25 | W70: 47.738 | X70: 57.738 | Y70: 117.9284 | Z70: 135.9284 | AA70: 117.9284 | AB70: 135.9284 | AC70: 47.738 | AD70: 57.738 | AG70: 1 | AH70: Samma värden som idag | AN70: 37 | AO70: 47
A71: X 6600 | C71: 6600 | D71: 6600 | F71: =Calculator!$M$2 -> 10 | G71: =Fjäderkurva!$D$14 -> 10 | H71: =Fjäderkurva!$D$19 -> 150 | I71: =Calculator!$X$19 -> 20 | J71: =Calculator!$X$20 -> 20 | K71: 77 | L71: 25 | M71: 0.01339 | N71: =0.74*(H71/150)+0.26 -> 1 | O71: 1 | P71: 22.678 | Q71: 32.678 | R71: 22.678 | S71: 32.678 | T71: 72.8204 | U71: 90.8204 | V71: 25 | W71: 47.678 | X71: 57.678 | Y71: 117.8204 | Z71: 135.8204 | AA71: 117.8204 | AB71: 135.8204 | AC71: 47.678 | AD71: 57.678 | AG71: 1 | AH71: Samma värden som idag | AN71: 37 | AO71: 47
A72: X 9500 | C72: 9500 | D72: 9500 | F72: =Calculator!$M$2 -> 10 | G72: =Fjäderkurva!$D$14 -> 10 | H72: =Fjäderkurva!$D$19 -> 150 | I72: =Calculator!$X$19 -> 20 | J72: =Calculator!$X$20 -> 20 | K72: 77 | L72: 25 | M72: =-0.0000191040326040326*F72+0.011165147 -> 0.01097410667 | N72: =0.77*(H72/150)+0.23 -> 1 | O72: 1 | P72: 22.19482133 | Q72: 32.19482133 | R72: 22.19482133 | S72: 32.19482133 | T72: 71.9506784 | U72: 89.9506784 | V72: 25 | W72: 47.19482133 | X72: 57.19482133 | Y72: 116.9506784 | Z72: 134.9506784 | AA72: 116.9506784 | AB72: 134.9506784 | AC72: 47.19482133 | AD72: 57.19482133 | AG72: 1 | AH72: Samma värden som idag | AN72: 33 | AO72: 43
A73: X 20000 | C73: 20000 | D73: 20000 | F73: =Calculator!$M$2 -> 10 | G73: =Fjäderkurva!$D$14 -> 10 | H73: =Fjäderkurva!$D$19 -> 150 | I73: =Calculator!$X$19 -> 20 | J73: =Calculator!$X$20 -> 20 | K73: 77 | L73: 25 | M73: =0.0000242305296039432*H73*F73*(100*G73/F73) -> 3.634579441 | N73: =0.000200697723517146*I73*F73*G73/F73*100*0.0121957161724547*F73*I73 -> 9.79060989 | O73: =0.116667676767677*H73 -> 17.50015152 | P73: =J73+(O73*N73*M73*0.000233655270520329+4.89453401490754) -> 25.04004015 | Q73: =P73+10 -> 35.04004015 | R73: 25.04004015 | S73: 35.04004015 | T73: 77.07207227 | U73: 95.07207227 | V73: 25 | W73: 50.04004015 | X73: 60.04004015 | Y73: 122.0720723 | Z73: 140.0720723 | AA73: 122.0720723 | AB73: 140.0720723 | AC73: 50.04004015 | AD73: 60.04004015 | AG73: 2 | AH73: Nya tester | AN73: 32 | AO73: 42
C76: T3T- | D76: Power Line XG | F76: Strokelength | G76: Utilized | H76: Fill pressure | I76: Frequency | J76: Env./Tool | K76: Env./Tool | L76: Env./Tool | P76: Estimated running | R76: =P76 -> Estimated running | V76: F° env./tool | AB76: =P76 -> Estimated running | AG76: 1
G77: strokelength | J77: temperature | K77: temperature | L77: temperature | M77: Fjäderfaktor | N77: Tryckfaktor | O77: Slagfaktor | P77: temperature between: | R77: temperature between: | V77: temp. | AB77: =P77 -> temperature between: | AG77: 1
C78: Spring Size | D78: Spring Size | G78: [mm] | H78: [Bar] | I78: [spm] | J78: [°C] | K78: [°F] | L78: [°C] | M78: K1 | N78: Kp | O78: Ks | P78: [°C] | Q78: [°C] | R78: [°C] | S78: [°C] | T78: P som [°F] | U78: Q som [°F] | V78: to C° | W78: N + T | X78: U + 10°C | Y78: U to F° | Z78: V to F° | AA78: [°F] | AB78: [°F] | AC78: [°C] | AD78: [°C] | AG78: 1
A79: =CONCATENATE("XG"," ",D79) -> XG 350 | C79: 350 | D79: 350 | F79: =Calculator!$M$2 -> 10 | G79: =Fjäderkurva!$D$14 -> 10 | H79: =Fjäderkurva!$D$19 -> 150 | I79: =Calculator!$X$19 -> 20 | J79: =Calculator!$X$20 -> 20 | K79: 77 | L79: =5/9*(K79-32) -> 25 | M79: =-0.0000557409944506719*F79+0.012735192 -> 0.01217778206 | N79: =0.78*(H79/180)+0.22 -> 0.87 | O79: =(G79/F79)^1.15 -> 1 | P79: =F79*I79*M79*N79*O79+J79 -> 22.11893408 | Q79: =P79+10 -> 32.11893408 | R79: 22.11893408 | S79: 32.11893408 | T79: =9/5*R79+32 -> 71.81408134 | U79: 89.81408134 | V79: 25 | W79: 47.11893408 | X79: =W79+10 -> 57.11893408 | Y79: 116.8140813 | Z79: 134.8140813 | AA79: =Y79 -> 116.8140813 | AB79: 134.8140813 | AC79: =5/9*(AA79-32) -> 47.11893408 | AD79: 57.11893408 | AE79: =IF(Q79>80,"High temp. Please contact your distributor for advice",IF(H79>180,"Too high charging pressure!","")) ->  | AF79: =AE79 ->  | AG79: 1 | AH79: Samma värden som X 350 | AN79: 31 | AO79: 41
A80: =CONCATENATE("XG"," ",D80) -> XG 500 | C80: 500 | D80: 500 | F80: =Calculator!$M$2 -> 10 | G80: =Fjäderkurva!$D$14 -> 10 | H80: =Fjäderkurva!$D$19 -> 150 | I80: =Calculator!$X$19 -> 20 | J80: =Calculator!$X$20 -> 20 | K80: 77 | L80: 25 | M80: =-0.0000286323189548996*F80+0.01030877 -> 0.01002244681 | N80: =0.69*(H80/150)+0.31 -> 1 | O80: 1 | P80: 22.00448936 | Q80: 32.00448936 | R80: 22.00448936 | S80: 32.00448936 | T80: 71.60808085 | U80: 89.60808085 | V80: 25 | W80: 47.00448936 | X80: 57.00448936 | Y80: 116.6080809 | Z80: 134.6080809 | AA80: 116.6080809 | AB80: 134.6080809 | AC80: 47.00448936 | AD80: 57.00448936 | AE80: =IF(Q80>80,"High temp. Please contact your distributor for advice",IF(H80>150,"Too high charging pressure!","")) ->  | AG80: 1 | AH80: Samma värden som X 500 | AN80: 32 | AO80: 42
A81: XG 750 | C81: 750 | D81: 750 | F81: =Calculator!$M$2 -> 10 | G81: =Fjäderkurva!$D$14 -> 10 | H81: =Fjäderkurva!$D$19 -> 150 | I81: =Calculator!$X$19 -> 20 | J81: =Calculator!$X$20 -> 20 | K81: 77 | L81: 25 | M81: =-5.21759415768633E-06*F81+0.011064444 -> 0.01101226806 | N81: =0.7*(H81/150)+0.3 -> 1 | O81: 1 | P81: 22.20245361 | Q81: 32.20245361 | R81: 22.20245361 | S81: 32.20245361 | T81: 71.9644165 | U81: 89.9644165 | V81: 25 | W81: 47.20245361 | X81: 57.20245361 | Y81: 116.9644165 | Z81: 134.9644165 | AA81: 116.9644165 | AB81: 134.9644165 | AC81: 47.20245361 | AD81: 57.20245361 | AG81: 1 | AH81: Samma värden som X 750 | AN81: 34 | AO81: 44
A82: XG 1000 | C82: 1000 | D82: 1000 | F82: =Calculator!$M$2 -> 10 | G82: =Fjäderkurva!$D$14 -> 10 | H82: =Fjäderkurva!$D$19 -> 150 | I82: =Calculator!$X$19 -> 20 | J82: =Calculator!$X$20 -> 20 | K82: 77 | L82: 25 | M82: =-3.37582158982632E-06*F82+0.012213964 -> 0.01218020578 | N82: =0.79*(H82/150)+0.21 -> 1 | O82: 1 | P82: 22.43604116 | Q82: 32.43604116 | R82: 22.43604116 | S82: 32.43604116 | T82: 72.38487408 | U82: 90.38487408 | V82: 25 | W82: 47.43604116 | X82: 57.43604116 | Y82: 117.3848741 | Z82: 135.3848741 | AA82: 117.3848741 | AB82: 135.3848741 | AC82: 47.43604116 | AD82: 57.43604116 | AG82: 1 | AH82: Samma värden som X 1000 | AN82: 36 | AO82: 46
A83: XG 1500 | C83: 1500 | D83: 1500 | F83: =Calculator!$M$2 -> 10 | G83: =Fjäderkurva!$D$14 -> 10 | H83: =Fjäderkurva!$D$19 -> 150 | I83: =Calculator!$X$19 -> 20 | J83: =Calculator!$X$20 -> 20 | K83: 77 | L83: 25 | M83: =-0.0000115814333465656*F83+0.0161709 -> 0.01605508567 | N83: =0.84*(H83/150)+0.16 -> 1 | O83: 1 | P83: 23.21101713 | Q83: 33.21101713 | R83: 23.21101713 | S83: 33.21101713 | T83: 73.77983084 | U83: 91.77983084 | V83: 25 | W83: 48.21101713 | X83: 58.21101713 | Y83: =9/5*W83+32 -> 118.7798308 | Z83: 136.7798308 | AA83: 118.7798308 | AB83: 136.7798308 | AC83: 48.21101713 | AD83: 58.21101713 | AG83: 1 | AH83: Samma värden som X 1500 | AN83: 38 | AO83: 48
A84: XG 2400 | C84: 2400 | D84: 2400 | F84: =Calculator!$M$2 -> 10 | G84: =Fjäderkurva!$D$14 -> 10 | H84: =Fjäderkurva!$D$19 -> 150 | I84: =Calculator!$X$19 -> 20 | J84: =Calculator!$X$20 -> 20 | K84: 77 | L84: 25 | M84: 0.01582 | N84: =0.87*(H84/150)+0.13 -> 1 | O84: 1 | P84: 23.164 | Q84: 33.164 | R84: 23.164 | S84: 33.164 | T84: 73.6952 | U84: 91.6952 | V84: 25 | W84: 48.164 | X84: 58.164 | Y84: 118.6952 | Z84: 136.6952 | AA84: 118.6952 | AB84: 136.6952 | AC84: 48.164 | AD84: 58.164 | AG84: 1 | AH84: Samma värden som X 2400 | AN84: 39 | AO84: 49
A85: XG 4200 | C85: 4200 | D85: 4200 | F85: =Calculator!$M$2 -> 10 | G85: =Fjäderkurva!$D$14 -> 10 | H85: =Fjäderkurva!$D$19 -> 150 | I85: =Calculator!$X$19 -> 20 | J85: =Calculator!$X$20 -> 20 | K85: 77 | L85: 25 | M85: 0.01369 | N85: =0.8*(H85/150)+0.2 -> 1 | O85: 1 | P85: 22.738 | Q85: 32.738 | R85: 22.738 | S85: 32.738 | T85: 72.9284 | U85: 90.9284 | V85: 25 | W85: 47.738 | X85: 57.738 | Y85: 117.9284 | Z85: 135.9284 | AA85: 117.9284 | AB85: 135.9284 | AC85: 47.738 | AD85: 57.738 | AG85: 1 | AH85: Samma värden som X 4200 | AN85: 37 | AO85: 47
A86: XG 6600 | C86: 6600 | D86: 6600 | F86: =Calculator!$M$2 -> 10 | G86: =Fjäderkurva!$D$14 -> 10 | H86: =Fjäderkurva!$D$19 -> 150 | I86: =Calculator!$X$19 -> 20 | J86: =Calculator!$X$20 -> 20 | K86: 77 | L86: 25 | M86: 0.01339 | N86: =0.74*(H86/150)+0.26 -> 1 | O86: 1 | P86: 22.678 | Q86: 32.678 | R86: 22.678 | S86: 32.678 | T86: 72.8204 | U86: 90.8204 | V86: 25 | W86: 47.678 | X86: 57.678 | Y86: 117.8204 | Z86: 135.8204 | AA86: 117.8204 | AB86: 135.8204 | AC86: 47.678 | AD86: 57.678 | AG86: 1 | AH86: Samma värden som X 6600 | AN86: 37 | AO86: 47
C87: 9500 | D87: finns ej | F87: =Calculator!$M$2 -> 10 | G87: =Fjäderkurva!$D$14 -> 10 | H87: =Fjäderkurva!$D$19 -> 150 | I87: =Calculator!$X$19 -> 20 | J87: =Calculator!$X$20 -> 20 | K87: 77 | L87: 25 | M87: =-0.0000191040326040326*F87+0.011165147 -> 0.01097410667 | N87: =0.77*(H87/150)+0.23 -> 1 | O87: 1 | P87: 22.19482133 | Q87: 32.19482133 | R87: 22.19482133 | S87: 32.19482133 | T87: 71.9506784 | U87: 89.9506784 | V87: 25 | W87: 47.19482133 | X87: 57.19482133 | Y87: 116.9506784 | Z87: 134.9506784 | AA87: 116.9506784 | AB87: 134.9506784 | AC87: 47.19482133 | AD87: 57.19482133 | AG87: 3 | AH87: Samma värden som X9500 | AN87: 33 | AO87: 43
C90: T2-50 | D90: R12 | F90: Strokelength | G90: Utilized | H90: Fill pressure | I90: Frequency | J90: Env./Tool | K90: Env./Tool | L90: Env./Tool | P90: Estimated running | V90: F° env./tool | AB90: =P90 -> Estimated running | AG90: 3
G91: strokelength | J91: temperature | K91: temperature | L91: temperature | N91: Tryck-och | P91: temperature between: | V91: temp. | AB91: =P91 -> temperature between: | AG91: 3
C92: Spring Size | D92: Spring Size | G92: [mm] | H92: [Bar] | I92: [spm] | J92: [°C] | K92: [°F] | L92: [°C] | M92: Slaglängdsfaktor | N92: SPM-faktor | O92: %-faktor | P92: [°C] | Q92: [°C] | T92: P som [°F] | U92: Q som [°F] | V92: to C° | W92: N + T | X92: U + 10°C | Y92: U to F° | Z92: V to F° | AA92: [°F] | AB92: [°F] | AC92: [°C] | AD92: [°C] | AG92: 3
A93: R12 | C93: T2-50 | D93: R12 | F93: =Calculator!$M$2 -> 10 | G93: =Fjäderkurva!$D$14 -> 10 | H93: =Fjäderkurva!$D$19 -> 150 | I93: =Calculator!$X$19 -> 20 | J93: =Calculator!$X$20 -> 20 | K93: 77 | L93: 25 | M93: =0*F93^2+0.0773842904727491*F93+1.38869038428296 -> 2.162533289 | N93: =(0*H93^2+0.0218685433000524*H93+3.25496045048892)*(0.00155475011645089*I93^2-0.0694414388077009*I93+3.14993259505957) -> 15.57350682 | O93: =0.0860769264525189*(100*G93/F93)-0.119238195541514 -> 8.48845445 | P93: =((M93*N93*O93)*0.00491291957951706-0.116151420334139)+J93 -> 21.28833484 | Q93: =P93+10 -> 31.28833484 | R93: =P93 -> 21.28833484 | S93: =Q93 -> 31.28833484 | T93: 70.31900272 | U93: 88.31900272 | V93: =5/9*(K93-32) -> 25 | W93: =P93+V93 -> 46.28833484 | X93: 56.28833484 | Y93: 115.3190027 | Z93: 133.3190027 | AA93: 115.3190027 | AB93: 133.3190027 | AC93: 46.28833484 | AD93: 56.28833484 | AE93: =IF(Q93>80,"High temp. Please contact your distributor for advice",IF(H93>180,"Too high charging pressure!","")) ->  | AG93: 3 | AH93: Nya tester | AN93: 28 | AO93: 38
C96: T2-70 | D96: R15 | F96: Strokelength | G96: Utilized | H96: Fill pressure | I96: Frequency | J96: Env./Tool | K96: Env./Tool | L96: Env./Tool | P96: Estimated running | V96: F° env./tool | AB96: =P96 -> Estimated running | AG96: 3
G97: strokelength | J97: temperature | K97: temperature | L97: temperature | N97: Tryck-och | P97: temperature between: | V97: temp. | AB97: =P97 -> temperature between: | AG97: 3
C98: Spring Size | D98: Spring Size | G98: [mm] | H98: [Bar] | I98: [spm] | J98: [°C] | K98: [°F] | L98: [°C] | M98: Slaglängdsfaktor | N98: SPM-faktor | O98: %-faktor | P98: [°C] | Q98: [°C] | T98: P som [°F] | U98: Q som [°F] | V98: to C° | W98: N + T | X98: U + 10°C | Y98: U to F° | Z98: V to F° | AA98: [°F] | AB98: [°F] | AC98: [°C] | AD98: [°C] | AG98: 3
A99: R15 | C99: T2-70 | D99: R15 | F99: =Calculator!$M$2 -> 10 | G99: =Fjäderkurva!$D$14 -> 10 | H99: =Fjäderkurva!$D$19 -> 150 | I99: =Calculator!$X$19 -> 20 | J99: =Calculator!$X$20 -> 20 | K99: 77 | L99: 25 | M99: =0*F99^2+0.101700563349931*F99+1.05952116662376 -> 2.0765268 | N99: =(0*H99^2+0.025631766517952*H99+3.91514433290844)*(0.000827721825636666*I99^2+0.00507305883455402*I99+3.03783330199938) -> 26.92985897 | O99: =0.0859722222222222*(100*G99/F99)+1.01562037037037 -> 9.612842593 | P99: =((M99*N99*O99)*0.0028145556115581+0.145637978570093)+J99 -> 21.65861832 | Q99: =P99+10 -> 31.65861832 | R99: =P99 -> 21.65861832 | S99: =Q99 -> 31.65861832 | T99: 70.98551297 | U99: 88.98551297 | V99: 25 | W99: 46.65861832 | X99: 56.65861832 | Y99: 115.985513 | Z99: 133.985513 | AA99: 115.985513 | AB99: 133.985513 | AC99: 46.65861832 | AD99: 56.65861832 | AE99: =IF(Q99>80,"High temp. Please contact your distributor for advice",IF(H99>180,"Too high charging pressure!","")) ->  | AG99: 3 | AH99: Nya tester | AN99: 29 | AO99: 39
C102: T2-90 | D102: R19 | F102: Strokelength | G102: Utilized | H102: Fill pressure | I102: Frequency | J102: Env./Tool | K102: Env./Tool | L102: Env./Tool | P102: Estimated running | R102: =P102 -> Estimated running | V102: F° env./tool | AB102: =P102 -> Estimated running | AG102: 2
G103: strokelength | J103: temperature | K103: temperature | L103: temperature | N103: Tryck-och | P103: temperature between: | R103: =P103 -> temperature between: | V103: temp. | AB103: =P103 -> temperature between: | AG103: 2
C104: Spring Size | D104: Spring Size | G104: [mm] | H104: [Bar] | I104: [spm] | J104: [°C] | K104: [°F] | L104: [°C] | M104: Slaglängdsfaktor | N104: SPM-faktor | O104: %-faktor | P104: [°C] | Q104: [°C] | R104: =P104 -> [°C] | S104: =Q104 -> [°C] | T104: P som [°F] | U104: Q som [°F] | V104: to C° | W104: N + T | X104: U + 10°C | Y104: U to F° | Z104: V to F° | AA104: [°F] | AB104: [°F] | AC104: [°C] | AD104: [°C] | AG104: 2
A105: R19 | C105: T2-90 | D105: R19 | F105: =Calculator!$M$2 -> 10 | G105: =Fjäderkurva!$D$14 -> 10 | H105: =Fjäderkurva!$D$19 -> 150 | I105: =Calculator!$X$19 -> 20 | J105: =Calculator!$X$20 -> 20 | K105: 77 | L105: 25 | M105: =-0.000305883384051968*F105^2+0.156486863440078*F105+1.29999288234444 -> 2.834273178 | N105: =(0*H105^2+0.02389494890977*H105+6.72599823905976)*(0.00227350762618537*I105^2-0.03*I105+3.13727121454514) -> 35.53604086 | O105: =0.0991536412606766*(100*G105/F105)+2.0166981641606 -> 11.93206229 | P105: =((M105*N105*O105)*0.000754142112906586+0.237377105445892)+J105 -> 21.1436927 | Q105: =P105+10 -> 31.1436927 | R105: =P105 -> 21.1436927 | S105: =R105+10 -> 31.1436927 | T105: 70.05864686 | U105: 88.05864686 | V105: 25 | W105: 46.1436927 | X105: 56.1436927 | Y105: 115.0586469 | Z105: 133.0586469 | AA105: 115.0586469 | AB105: 133.0586469 | AC105: 46.1436927 | AD105: 56.1436927 | AE105: =IF(Q105>80,"High temp. Please contact your distributor for advice",IF(H105>180,"Too high charging pressure!","")) ->  | AF105: =AE105 ->  | AG105: 2 | AH105: Nya tester | AN105: 27 | AO105: 37
C108: NPL- | D108: TL | F108: Strokelength | G108: Utilized | H108: Fill pressure | I108: Frequency | J108: Env./Tool | K108: Env./Tool | L108: Env./Tool | P108: Estimated running | R108: =P108 -> Estimated running | V108: F° env./tool | AB108: =P108 -> Estimated running | AG108: 1
G109: strokelength | J109: temperature | K109: temperature | L109: temperature | M109: Fjäderfaktor | N109: Tryckfaktor | O109: Slagfaktor | P109: temperature between: | R109: temperature between: | V109: temp. | AB109: =P109 -> temperature between: | AG109: 1
C110: Spring Size | D110: Spring Size | G110: [mm] | H110: [Bar] | I110: [spm] | J110: [°C] | K110: [°F] | L110: [°C] | M110: K1 | N110: Kp | O110: Ks | P110: [°C] | Q110: [°C] | R110: [°C] | S110: [°C] | T110: P som [°F] | U110: Q som [°F] | V110: to C° | W110: N + T | X110: U + 10°C | Y110: U to F° | Z110: V to F° | AA110: [°F] | AB110: [°F] | AC110: [°C] | AD110: [°C] | AG110: 1
A111: =CONCATENATE("TL"," ",D111) -> TL 750 | C111: 750 | D111: 750 | F111: =Calculator!$M$2 -> 10 | G111: =Fjäderkurva!$D$14 -> 10 | H111: =Fjäderkurva!$D$19 -> 150 | I111: =Calculator!$X$19 -> 20 | J111: =Calculator!$X$20 -> 20 | K111: 77 | L111: 25 | M111: =-0.0000002*F111^2+0.00005*F111+0.0132 -> 0.01368 | N111: =0.88*(H111/150)+0.12 -> 1 | O111: =0.3551*(G111/F111)^2+0.5449*(G111/F111)+0.1 -> 1 | P111: =F111*I111*M111*N111*O111+J111-2 -> 20.736 | Q111: =P111+10 -> 30.736 | R111: 20.736 | S111: 30.736 | T111: 69.3248 | U111: 87.3248 | V111: 25 | W111: 45.736 | X111: 55.736 | Y111: 114.3248 | Z111: 132.3248 | AA111: 114.3248 | AB111: 132.3248 | AC111: 45.736 | AD111: 55.736 | AE111: =IF(Q111>80,"High temp. Please contact your distributor for advice",IF(H111>150,"Too high charging pressure!","")) ->  | AF111: =AE111 ->  | AG111: 1 | AH111: Samma värden som TU 750 | AN111: 34 | AO111: 44
A112: =CONCATENATE("TL"," ",D112) -> TL 1500 | C112: 1500 | D112: 1500 | F112: =Calculator!$M$2 -> 10 | G112: =Fjäderkurva!$D$14 -> 10 | H112: =Fjäderkurva!$D$19 -> 150 | I112: =Calculator!$X$19 -> 20 | J112: =Calculator!$X$20 -> 20 | K112: 77 | L112: 25 | M112: =-0.00000015*F112^2+0.000027*F112+0.0145 -> 0.014755 | N112: =0.88*(H112/150)+0.12 -> 1 | O112: =0.82*(G112/F112)^2+0.075*(G112/F112)+0.1 -> 0.995 | P112: =F112*I112*M112*N112*O112+J112 -> 22.936245 | Q112: =P112+10 -> 32.936245 | R112: 22.936245 | S112: 32.936245 | T112: 73.285241 | U112: 91.285241 | V112: 25 | W112: 47.936245 | X112: 57.936245 | Y112: 118.285241 | Z112: 136.285241 | AA112: 118.285241 | AB112: 136.285241 | AC112: 47.936245 | AD112: 57.936245 | AE112: =IF(Q112>80,"High temp. Please contact your distributor for advice",IF(H112>150,"Too high charging pressure!","")) ->  | AF112: =AE112 ->  | AG112: 1 | AH112: Samma värden som TU 1500 | AN112: 38 | AO112: 48
A113: TL 3000 | C113: 3000 | D113: 3000 | F113: =Calculator!$M$2 -> 10 | G113: =Fjäderkurva!$D$14 -> 10 | H113: =Fjäderkurva!$D$19 -> 150 | I113: =Calculator!$X$19 -> 20 | J113: =Calculator!$X$20 -> 20 | K113: 77 | L113: 25 | M113: =0.00000005*F113^2-0.000034*F113+0.0186 -> 0.018265 | N113: =0.75*(H113/150)+0.25 -> 1 | O113: =0.82*(G113/F113)^2+0.075*(G113/F113)+0.1 -> 0.995 | P113: =F113*I113*M113*N113*O113+J113 -> 23.634735 | Q113: =P113+10 -> 33.634735 | R113: 23.634735 | S113: 33.634735 | T113: 74.542523 | U113: 92.542523 | V113: 25 | W113: 48.634735 | X113: 58.634735 | Y113: 119.542523 | Z113: 137.542523 | AA113: 119.542523 | AB113: 137.542523 | AC113: 48.634735 | AD113: 58.634735 | AE113: =IF(Q113>80,"High temp. Please contact your distributor for advice",IF(H113>150,"Too high charging pressure!","")) ->  | AF113: =AE113 ->  | AG113: 1 | AH113: Samma värden som TU 3000 | AN113: 47 | AO113: 57
A114: TL 5000 | C114: 5000 | D114: 5000 | F114: =Calculator!$M$2 -> 10 | G114: =Fjäderkurva!$D$14 -> 10 | H114: =Fjäderkurva!$D$19 -> 150 | I114: =Calculator!$X$19 -> 20 | J114: =Calculator!$X$20 -> 20 | K114: 77 | L114: 25 | M114: =-0.000003*F114+0.0155 -> 0.01547 | N114: =0.89*(H114/150)+0.11 -> 1 | O114: =0.82*(G114/F114)^2+0.075*(G114/F114)+0.1 -> 0.995 | P114: =F114*I114*M114*N114*O114+J114 -> 23.07853 | Q114: =P114+10 -> 33.07853 | R114: 23.07853 | S114: 33.07853 | T114: 73.541354 | U114: 91.541354 | V114: 25 | W114: 48.07853 | X114: 58.07853 | Y114: 118.541354 | Z114: 136.541354 | AA114: 118.541354 | AB114: 136.541354 | AC114: 48.07853 | AD114: 58.07853 | AE114: =IF(Q114>80,"High temp. Please contact your distributor for advice",IF(H114>150,"Too high charging pressure!","")) ->  | AF114: =AE114 ->  | AG114: 1 | AH114: Samma värden som TU 5000 | AN114: 38 | AO114: 48
A115: TL 7500 | C115: 7500 | D115: 7500 | F115: =Calculator!$M$2 -> 10 | G115: =Fjäderkurva!$D$14 -> 10 | H115: =Fjäderkurva!$D$19 -> 150 | I115: =Calculator!$X$19 -> 20 | J115: =Calculator!$X$20 -> 20 | K115: 77 | L115: 25 | M115: =-0.000018*F115+0.025 -> 0.02482 | N115: =0.85*(H115/150)+0.15 -> 1 | O115: =0.82*(G115/F115)^2+0.075*(G115/F115)+0.1 -> 0.995 | P115: =F115*I115*M115*N115*O115+J115 -> 24.93918 | Q115: =P115+10 -> 34.93918 | R115: 24.93918 | S115: 34.93918 | T115: 76.890524 | U115: 94.890524 | V115: 25 | W115: 49.93918 | X115: 59.93918 | Y115: 121.890524 | Z115: 139.890524 | AA115: 121.890524 | AB115: 139.890524 | AC115: 49.93918 | AD115: 59.93918 | AE115: =IF(Q115>80,"High temp. Please contact your distributor for advice",IF(H115>150,"Too high charging pressure!","")) ->  | AF115: =AE115 ->  | AG115: 1 | AH115: Samma värden som TU 7500 | AN115: 44 | AO115: 54
N117: Tryck-och
C118: NP- | D118: TU | F118: Strokelength | G118: Utilized | H118: Fill pressure | I118: Frequency | J118: Env./Tool | K118: Env./Tool | L118: Env./Tool | M118: Slaglängdsfaktor | N118: SPM-faktor | O118: %-faktor | P118: Estimated running | R118: =P118 -> Estimated running | V118: F° env./tool | AB118: =P118 -> Estimated running | AG118: 1
G119: strokelength | J119: temperature | K119: temperature | L119: temperature | M119: Fjäderfaktor | N119: Tryckfaktor | O119: Slagfaktor | P119: temperature between: | R119: temperature between: | V119: temp. | AB119: =P119 -> temperature between: | AG119: 1
C120: Spring Size | D120: Spring Size | G120: [mm] | H120: [Bar] | I120: [spm] | J120: [°C] | K120: [°F] | L120: [°C] | M120: K1 | N120: Kp | O120: Ks | P120: [°C] | Q120: [°C] | R120: [°C] | S120: [°C] | T120: P som [°F] | U120: Q som [°F] | V120: to C° | W120: N + T | X120: U + 10°C | Y120: U to F° | Z120: V to F° | AA120: [°F] | AB120: [°F] | AC120: [°C] | AD120: [°C] | AG120: 1
A121: =CONCATENATE("TU"," ",D121) -> TU 250 | C121: 250 | D121: 250 | F121: =Calculator!$M$2 -> 10 | G121: =Fjäderkurva!$D$14 -> 10 | H121: =Fjäderkurva!$D$19 -> 150 | I121: =Calculator!$X$19 -> 20 | J121: =Calculator!$X$20 -> 20 | K121: 77 | L121: 25 | M121: =0*F121^2+0.191028214047924*F121+1.19489445411071 -> 3.105176595 | N121: =(0*H121^2+0.0198307891272208*H121+11.9649416367658)*(0*I121^2+0.0630821558264525*I121+9.92754833295433) -> 167.1615971 | O121: =0.0557716256805885*(100*G121/F121)+9.77007422382933 -> 15.34723679 | P121: =((M121*N121*O121)*0.000375660733019535-0.345071041185781)+J121 -> 22.64752992 | Q121: =P121+10 -> 32.64752992 | R121: 22.64752992 | S121: 32.64752992 | T121: 72.76555386 | U121: 90.76555386 | V121: 25 | W121: 47.64752992 | X121: 57.64752992 | Y121: 117.7655539 | Z121: 135.7655539 | AA121: 117.7655539 | AB121: 135.7655539 | AC121: 47.64752992 | AD121: 57.64752992 | AE121: =IF(Q121>80,"High temp. Please contact your distributor for advice",IF(H121>150,"Too high charging pressure!","")) ->  | AF121: =AE121 ->  | AG121: 1 | AH121: Nya tester | AN121: 42 | AO121: 52
A122: =CONCATENATE("TU"," ",D122) -> TU 500 | C122: 500 | D122: 500 | F122: =Calculator!$M$2 -> 10 | G122: =Fjäderkurva!$D$14 -> 10 | H122: =Fjäderkurva!$D$19 -> 150 | I122: =Calculator!$X$19 -> 20 | J122: =Calculator!$X$20 -> 20 | K122: 77 | L122: 25 | M122: =-0.00000013726*F122^2-0.0000076261*F122+0.0133 -> 0.013210013 | N122: =0.1645*EXP(1.7*(H122/150))+0.1 -> 1.000464346 | O122: =0.496*(G122/F122)^2+0.4572*(G122/F122)+0.05 -> 1.0032 | P122: =(F122*I122*M122*N122*O122)+J122 -> 22.65168774 | Q122: =P122+10 -> 32.65168774 | R122: 22.65168774 | S122: 32.65168774 | T122: 72.77303793 | U122: 90.77303793 | V122: 25 | W122: 47.65168774 | X122: 57.65168774 | Y122: 117.7730379 | Z122: 135.7730379 | AA122: 117.7730379 | AB122: 135.7730379 | AC122: 47.65168774 | AD122: 57.65168774 | AG122: 1 | AH122: Samma värden som idag | AN122: 29 | AO122: 39
A123: TU 750 | C123: 750 | D123: 750 | F123: =Calculator!$M$2 -> 10 | G123: =Fjäderkurva!$D$14 -> 10 | H123: =Fjäderkurva!$D$19 -> 150 | I123: =Calculator!$X$19 -> 20 | J123: =Calculator!$X$20 -> 20 | K123: 77 | L123: 25 | M123: =-0.0000002*F123^2+0.00005*F123+0.0132 -> 0.01368 | N123: =0.88*(H123/150)+0.12 -> 1 | O123: =0.3551*(G123/F123)^2+0.5449*(G123/F123)+0.1 -> 1 | P123: =F123*I123*M123*N123*O123+J123-2 -> 20.736 | Q123: =P123+10 -> 30.736 | R123: 20.736 | S123: 30.736 | T123: 69.3248 | U123: 87.3248 | V123: 25 | W123: 45.736 | X123: 55.736 | Y123: 114.3248 | Z123: 132.3248 | AA123: 114.3248 | AB123: 132.3248 | AC123: 45.736 | AD123: 55.736 | AG123: 1 | AH123: Samma värden som idag | AN123: 33 | AO123: 43
A124: TU 1500 | C124: 1500 | D124: 1500 | F124: =Calculator!$M$2 -> 10 | G124: =Fjäderkurva!$D$14 -> 10 | H124: =Fjäderkurva!$D$19 -> 150 | I124: =Calculator!$X$19 -> 20 | J124: =Calculator!$X$20 -> 20 | K124: 77 | L124: 25 | M124: =-0.00000015*F124^2+0.000027*F124+0.0145 -> 0.014755 | N124: =0.88*(H124/150)+0.12 -> 1 | O124: =0.82*(G124/F124)^2+0.075*(G124/F124)+0.1 -> 0.995 | P124: =F124*I124*M124*N124*O124+J124 -> 22.936245 | Q124: 32.936245 | R124: 22.936245 | S124: 32.936245 | T124: 73.285241 | U124: 91.285241 | V124: 25 | W124: 47.936245 | X124: 57.936245 | Y124: 118.285241 | Z124: 136.285241 | AA124: 118.285241 | AB124: 136.285241 | AC124: 47.936245 | AD124: 57.936245 | AG124: 1 | AH124: Samma värden som idag | AN124: 38 | AO124: 48
A125: TU 3000 | C125: 3000 | D125: 3000 | F125: =Calculator!$M$2 -> 10 | G125: =Fjäderkurva!$D$14 -> 10 | H125: =Fjäderkurva!$D$19 -> 150 | I125: =Calculator!$X$19 -> 20 | J125: =Calculator!$X$20 -> 20 | K125: 77 | L125: 25 | M125: =0.00000005*F125^2-0.000034*F125+0.0186 -> 0.018265 | N125: =0.75*(H125/150)+0.25 -> 1 | O125: =0.82*(G125/F125)^2+0.075*(G125/F125)+0.1 -> 0.995 | P125: =F125*I125*M125*N125*O125+J125 -> 23.634735 | Q125: 33.634735 | R125: 23.634735 | S125: 33.634735 | T125: 74.542523 | U125: 92.542523 | V125: 25 | W125: 48.634735 | X125: 58.634735 | Y125: 119.542523 | Z125: 137.542523 | AA125: 119.542523 | AB125: 137.542523 | AC125: 48.634735 | AD125: 58.634735 | AG125: 1 | AH125: Samma värden som idag | AN125: 38 | AO125: 48
A126: TU 5000 | C126: 5000 | D126: 5000 | F126: =Calculator!$M$2 -> 10 | G126: =Fjäderkurva!$D$14 -> 10 | H126: =Fjäderkurva!$D$19 -> 150 | I126: =Calculator!$X$19 -> 20 | J126: =Calculator!$X$20 -> 20 | K126: 77 | L126: 25 | M126: =-0.000003*F126+0.0155 -> 0.01547 | N126: =0.89*(H126/150)+0.11 -> 1 | O126: =0.82*(G126/F126)^2+0.075*(G126/F126)+0.1 -> 0.995 | P126: =F126*I126*M126*N126*O126+J126 -> 23.07853 | Q126: 33.07853 | R126: 23.07853 | S126: 33.07853 | T126: 73.541354 | U126: 91.541354 | V126: 25 | W126: 48.07853 | X126: 58.07853 | Y126: 118.541354 | Z126: 136.541354 | AA126: 118.541354 | AB126: 136.541354 | AC126: 48.07853 | AD126: 58.07853 | AG126: 1 | AH126: Samma värden som idag | AN126: 38 | AO126: 48
A127: TU 7500 | C127: 7500 | D127: 7500 | F127: =Calculator!$M$2 -> 10 | G127: =Fjäderkurva!$D$14 -> 10 | H127: =Fjäderkurva!$D$19 -> 150 | I127: =Calculator!$X$19 -> 20 | J127: =Calculator!$X$20 -> 20 | K127: 77 | L127: 25 | M127: =-0.000018*F127+0.025 -> 0.02482 | N127: =0.85*(H127/150)+0.15 -> 1 | O127: =0.82*(G127/F127)^2+0.075*(G127/F127)+0.1 -> 0.995 | P127: =F127*I127*M127*N127*O127+J127 -> 24.93918 | Q127: 34.93918 | R127: 24.93918 | S127: 34.93918 | T127: 76.890524 | U127: 94.890524 | V127: 25 | W127: 49.93918 | X127: 59.93918 | Y127: 121.890524 | Z127: 139.890524 | AA127: 121.890524 | AB127: 139.890524 | AC127: 49.93918 | AD127: 59.93918 | AG127: 1 | AH127: Samma värden som idag | AN127: 44 | AO127: 54
A128: TU 10000 | C128: 10000 | D128: 10000 | F128: =Calculator!$M$2 -> 10 | G128: =Fjäderkurva!$D$14 -> 10 | H128: =Fjäderkurva!$D$19 -> 150 | I128: =Calculator!$X$19 -> 20 | J128: =Calculator!$X$20 -> 20 | K128: 77 | L128: 25 | M128: =-0.00000004*F128^2+0.000015*F128+0.0145 -> 0.014646 | N128: =0.9*(H128/150)+0.1 -> 1 | O128: =0.82*(G128/F128)^2+0.075*(G128/F128)+0.1 -> 0.995 | P128: =F128*I128*M128*N128*O128+J128 -> 22.914554 | Q128: 32.914554 | R128: 22.914554 | S128: 32.914554 | T128: 73.2461972 | U128: 91.2461972 | V128: 25 | W128: 47.914554 | X128: 57.914554 | Y128: 118.2461972 | Z128: 136.2461972 | AA128: 118.2461972 | AB128: 136.2461972 | AC128: 47.914554 | AD128: 57.914554 | AG128: 1 | AH128: Samma värden som idag | AN128: 38 | AO128: 48
C131: Finns ej | D131: TUR | F131: Strokelength | G131: Utilized | H131: Fill pressure | I131: Frequency | J131: Env./Tool | K131: Env./Tool | L131: Env./Tool | P131: Estimated running | R131: =P131 -> Estimated running | V131: F° env./tool | AB131: =P131 -> Estimated running | AG131: 1
G132: strokelength | J132: temperature | K132: temperature | L132: temperature | M132: Fjäderfaktor | N132: Tryckfaktor | O132: Slagfaktor | P132: temperature between: | R132: =P132 -> temperature between: | V132: temp. | AB132: =P132 -> temperature between: | AG132: 1
D133: Spring Size | G133: [mm] | H133: [Bar] | I133: [spm] | J133: [°C] | K133: [°F] | L133: [°C] | M133: K1 | N133: Kp | O133: Ks | P133: [°C] | Q133: [°C] | R133: =P133 -> [°C] | S133: =Q133 -> [°C] | T133: P som [°F] | U133: Q som [°F] | V133: to C° | W133: N + T | X133: U + 10°C | Y133: U to F° | Z133: V to F° | AA133: [°F] | AB133: [°F] | AC133: [°C] | AD133: [°C] | AG133: 1
A134: =CONCATENATE("TUR"," ",D134) -> TUR 10000 | D134: 10000 | F134: =Calculator!$M$2 -> 10 | G134: =Fjäderkurva!$D$14 -> 10 | H134: =Fjäderkurva!$D$19 -> 150 | I134: =Calculator!$X$19 -> 20 | J134: =Calculator!$X$20 -> 20 | K134: 77 | L134: 25 | M134: =-0.00000004*F134^2+0.000015*F134+0.0145 -> 0.014646 | N134: =0.9*(H134/150)+0.1 -> 1 | O134: =0.82*(G134/F134)^2+0.075*(G134/F134)+0.1 -> 0.995 | P134: =F134*I134*M134*N134*O134+J134 -> 22.914554 | Q134: =P134+10 -> 32.914554 | R134: =P134 -> 22.914554 | S134: =Q134 -> 32.914554 | T134: 73.2461972 | U134: 91.2461972 | V134: 25 | W134: 47.914554 | X134: 57.914554 | Y134: 118.2461972 | Z134: 136.2461972 | AA134: 118.2461972 | AB134: 136.2461972 | AC134: 47.914554 | AD134: 57.914554 | AE134: =IF(Q134>80,"High temp. Please contact your distributor for advice",IF(H134>150,"Too high charging pressure!","")) ->  | AF134: =AE134 ->  | AG134: 1 | AH134: Samma värden som TU | AN134: 38 | AO134: 48
C137: Finns ej | D137: TUS | F137: Strokelength | G137: Utilized | H137: Fill pressure | I137: Frequency | J137: Env./Tool | K137: Env./Tool | L137: Env./Tool | P137: Estimated running | R137: =P137 -> Estimated running | V137: F° env./tool | AB137: =P137 -> Estimated running | AG137: 1
G138: strokelength | J138: temperature | K138: temperature | L138: temperature | M138: Fjäderfaktor | N138: Tryckfaktor | O138: Slagfaktor | P138: temperature between: | R138: temperature between: | V138: temp. | AB138: =P138 -> temperature between: | AG138: 1
D139: Spring Size | G139: [mm] | H139: [Bar] | I139: [spm] | J139: [°C] | K139: [°F] | L139: [°C] | M139: K1 | N139: Kp | O139: Ks | P139: [°C] | Q139: [°C] | R139: [°C] | S139: [°C] | T139: P som [°F] | U139: Q som [°F] | V139: to C° | W139: N + T | X139: U + 10°C | Y139: U to F° | Z139: V to F° | AA139: [°F] | AB139: [°F] | AC139: [°C] | AD139: [°C] | AG139: 1
A140: =CONCATENATE("TUS"," ",D140) -> TUS 750 | D140: 750 | F140: =Calculator!$M$2 -> 10 | G140: =Fjäderkurva!$D$14 -> 10 | H140: =Fjäderkurva!$D$19 -> 150 | I140: =Calculator!$X$19 -> 20 | J140: =Calculator!$X$20 -> 20 | K140: 77 | L140: =5/9*(K140-32) -> 25 | M140: =-0.0000002*F140^2+0.00005*F140+0.0132 -> 0.01368 | N140: =0.88*(H140/150)+0.12 -> 1 | O140: =0.3551*(G140/F140)^2+0.5449*(G140/F140)+0.1 -> 1 | P140: =F140*I140*M140*N140*O140+J140-2 -> 20.736 | Q140: =P140+10 -> 30.736 | R140: 20.736 | S140: 30.736 | T140: =9/5*R140+32 -> 69.3248 | U140: 87.3248 | V140: 25 | W140: 45.736 | X140: =W140+10 -> 55.736 | Y140: 114.3248 | Z140: 132.3248 | AA140: =Y140 -> 114.3248 | AB140: 132.3248 | AC140: =5/9*(AA140-32) -> 45.736 | AD140: 55.736 | AE140: =IF(Q140>80,"High temp. Please contact your distributor for advice",IF(H140>150,"Too high charging pressure!","")) ->  | AF140: =AE140 ->  | AG140: 1 | AH140: Samma värden som TU | AN140: 37 | AO140: 47
A141: =CONCATENATE("TUS"," ",D141) -> TUS 1500 | D141: 1500 | F141: =Calculator!$M$2 -> 10 | G141: =Fjäderkurva!$D$14 -> 10 | H141: =Fjäderkurva!$D$19 -> 150 | I141: =Calculator!$X$19 -> 20 | J141: =Calculator!$X$20 -> 20 | K141: 77 | L141: 25 | M141: =-0.00000015*F141^2+0.000027*F141+0.0145 -> 0.014755 | N141: =0.88*(H141/150)+0.12 -> 1 | O141: =0.82*(G141/F141)^2+0.075*(G141/F141)+0.1 -> 0.995 | P141: =F141*I141*M141*N141*O141+J141 -> 22.936245 | Q141: =P141+10 -> 32.936245 | R141: 22.936245 | S141: 32.936245 | T141: 73.285241 | U141: 91.285241 | V141: 25 | W141: 47.936245 | X141: 57.936245 | Y141: 118.285241 | Z141: 136.285241 | AA141: 118.285241 | AB141: 136.285241 | AC141: 47.936245 | AD141: 57.936245 | AE141: =IF(Q141>80,"High temp. Please contact your distributor for advice",IF(H141>150,"Too high charging pressure!","")) ->  | AG141: 1 | AH141: Samma värden som TU | AN141: 38 | AO141: 48
A142: TUS 3000 | D142: 3000 | F142: =Calculator!$M$2 -> 10 | G142: =Fjäderkurva!$D$14 -> 10 | H142: =Fjäderkurva!$D$19 -> 150 | I142: =Calculator!$X$19 -> 20 | J142: =Calculator!$X$20 -> 20 | K142: 77 | L142: 25 | M142: =0.00000005*F142^2-0.000034*F142+0.0186 -> 0.018265 | N142: =0.75*(H142/150)+0.25 -> 1 | O142: =0.82*(G142/F142)^2+0.075*(G142/F142)+0.1 -> 0.995 | P142: =F142*I142*M142*N142*O142+J142 -> 23.634735 | Q142: =P142+10 -> 33.634735 | R142: 23.634735 | S142: 33.634735 | T142: 74.542523 | U142: 92.542523 | V142: 25 | W142: 48.634735 | X142: 58.634735 | Y142: 119.542523 | Z142: 137.542523 | AA142: 119.542523 | AB142: 137.542523 | AC142: 48.634735 | AD142: 58.634735 | AE142: =IF(Q142>80,"High temp. Please contact your distributor for advice",IF(H142>150,"Too high charging pressure!","")) ->  | AG142: 1 | AH142: Samma värden som TU | AN142: 38 | AO142: 48
A143: TUS 5000 | D143: 5000 | F143: =Calculator!$M$2 -> 10 | G143: =Fjäderkurva!$D$14 -> 10 | H143: =Fjäderkurva!$D$19 -> 150 | I143: =Calculator!$X$19 -> 20 | J143: =Calculator!$X$20 -> 20 | K143: 77 | L143: 25 | M143: =-0.000003*F143+0.0155 -> 0.01547 | N143: =0.89*(H143/150)+0.11 -> 1 | O143: =0.82*(G143/F143)^2+0.075*(G143/F143)+0.1 -> 0.995 | P143: =F143*I143*M143*N143*O143+J143 -> 23.07853 | Q143: =P143+10 -> 33.07853 | R143: 23.07853 | S143: 33.07853 | T143: 73.541354 | U143: 91.541354 | V143: 25 | W143: 48.07853 | X143: 58.07853 | Y143: 118.541354 | Z143: 136.541354 | AA143: 118.541354 | AB143: 136.541354 | AC143: 48.07853 | AD143: 58.07853 | AE143: =IF(Q143>80,"High temp. Please contact your distributor for advice",IF(H143>150,"Too high charging pressure!","")) ->  | AG143: 1 | AH143: Samma värden som TU | AN143: 38 | AO143: 48
A144: TUS 7500 | D144: 7500 | F144: =Calculator!$M$2 -> 10 | G144: =Fjäderkurva!$D$14 -> 10 | H144: =Fjäderkurva!$D$19 -> 150 | I144: =Calculator!$X$19 -> 20 | J144: =Calculator!$X$20 -> 20 | K144: 77 | L144: 25 | M144: =-0.000018*F144+0.025 -> 0.02482 | N144: =0.85*(H144/150)+0.15 -> 1 | O144: =0.82*(G144/F144)^2+0.075*(G144/F144)+0.1 -> 0.995 | P144: =F144*I144*M144*N144*O144+J144 -> 24.93918 | Q144: =P144+10 -> 34.93918 | R144: 24.93918 | S144: 34.93918 | T144: 76.890524 | U144: 94.890524 | V144: 25 | W144: 49.93918 | X144: 59.93918 | Y144: 121.890524 | Z144: 139.890524 | AA144: 121.890524 | AB144: 139.890524 | AC144: 49.93918 | AD144: 59.93918 | AE144: =IF(Q144>80,"High temp. Please contact your distributor for advice",IF(H144>150,"Too high charging pressure!","")) ->  | AG144: 1 | AH144: Samma värden som TU | AN144: 44 | AO144: 54
C147: T4- | D147: TX | F147: Strokelength | G147: Utilized | H147: Fill pressure | I147: Frequency | J147: Env./Tool | K147: Env./Tool | L147: Env./Tool | N147: Tryckfaktor Kp | P147: Estimated running | R147: =P147 -> Estimated running | V147: F° env./tool | AB147: =P147 -> Estimated running | AG147: 1
G148: strokelength | J148: temperature | K148: temperature | L148: temperature | M148: Fjäderfaktor K1 | N148: Tryck-och | O148: Slagfaktor Ks | P148: temperature between: | R148: =P148 -> temperature between: | V148: temp. | AB148: =P148 -> temperature between: | AG148: 1
C149: Spring Size | D149: Spring Size | G149: [mm] | H149: [Bar] | I149: [spm] | J149: [°C] | K149: [°F] | L149: [°C] | M149: Slaglängdsfaktor | N149: SPM-faktor | O149: %-faktor | P149: [°C] | Q149: [°C] | R149: =P149 -> [°C] | S149: =Q149 -> [°C] | T149: P som [°F] | U149: Q som [°F] | V149: to C° | W149: N + T | X149: U + 10°C | Y149: U to F° | Z149: V to F° | AA149: [°F] | AB149: [°F] | AC149: [°C] | AD149: [°C] | AG149: 1
A150: =CONCATENATE("TX"," ",D150) -> TX 750 | C150: 750 | D150: 750 | F150: =Calculator!$M$2 -> 10 | G150: =Fjäderkurva!$D$14 -> 10 | H150: =Fjäderkurva!$D$19 -> 150 | I150: =Calculator!$X$19 -> 20 | J150: =Calculator!$X$20 -> 20 | K150: 77 | L150: 25 | M150: =-0.00000013726*F150^2-0.0000076261*F150+0.0133 -> 0.013210013 | N150: =0.1645*EXP(1.7*(H150/150))+0.1 -> 1.000464346 | O150: =0.496*(G150/F150)^2+0.4572*(G150/F150)+0.05 -> 1.0032 | P150: =((F150*I150*M150*N150*O150)*0.9)+J150 -> 22.38651896 | Q150: =P150+10 -> 32.38651896 | R150: =P150 -> 22.38651896 | S150: =Q150 -> 32.38651896 | T150: 72.29573413 | U150: 90.29573413 | V150: =5/9*(K150-32) -> 25 | W150: =P150+V150 -> 47.38651896 | X150: 57.38651896 | Y150: =9/5*W150+32 -> 117.2957341 | Z150: 135.2957341 | AA150: 117.2957341 | AB150: 135.2957341 | AC150: 47.38651896 | AD150: 57.38651896 | AE150: =IF(Q150>80,"High temp. Please contact your distributor for advice",IF(H150>150,"Too high charging pressure!","")) ->  | AG150: 2 | AH150: Nya tester alt. samma som TU 500 | AN150: 31 | AO150: 41
A151: =CONCATENATE("TX"," ",D151) -> TX 1000 | C151: 1000 | D151: 1000 | F151: =Calculator!$M$2 -> 10 | G151: =Fjäderkurva!$D$14 -> 10 | H151: =Fjäderkurva!$D$19 -> 150 | I151: =Calculator!$X$19 -> 20 | J151: =Calculator!$X$20 -> 20 | K151: 77 | L151: 25 | M151: =-0.0000002*F151^2+0.00005*F151+0.0132 -> 0.01368 | N151: =0.88*(H151/150)+0.12 -> 1 | O151: =0.3551*(G151/F151)^2+0.5449*(G151/F151)+0.1 -> 1 | P151: =F151*I151*M151*N151*O151+J151-2 -> 20.736 | Q151: 30.736 | R151: =P151 -> 20.736 | S151: 30.736 | T151: 69.3248 | U151: 87.3248 | V151: 25 | W151: 45.736 | X151: 55.736 | Y151: 114.3248 | Z151: 132.3248 | AA151: 114.3248 | AB151: 132.3248 | AC151: 45.736 | AD151: 55.736 | AG151: 1 | AH151: Samma värden som TU 750 | AN151: 39 | AO151: 49
A152: TX 1500 | C152: 1500 | D152: 1500 | F152: =Calculator!$M$2 -> 10 | G152: =Fjäderkurva!$D$14 -> 10 | H152: =Fjäderkurva!$D$19 -> 150 | I152: =Calculator!$X$19 -> 20 | J152: =Calculator!$X$20 -> 20 | K152: 77 | L152: 25 | M152: =0.123963746670613*F152 -> 1.239637467 | N152: =(0.0703967741935484*H152+5.52354838709677)*(0.000530647743213614*I152^2+0.274166602843941*I152) -> 91.60255999 | O152: =(100*G152/F152)*0.171918187168923 -> 17.19181872 | P152: =J152+(M152*N152*O152*0.000731558156516041+4.52833074925737) -> 25.95647799 | Q152: 35.95647799 | R152: 25.95647799 | S152: 35.95647799 | T152: 78.72166038 | U152: 96.72166038 | V152: 25 | W152: 50.95647799 | X152: 60.95647799 | Y152: 123.7216604 | Z152: 141.7216604 | AA152: 123.7216604 | AB152: 141.7216604 | AC152: 50.95647799 | AD152: 60.95647799 | AG152: 2 | AH152: Nya tester | AN152: 37 | AO152: 47
A153: TX 2400 | C153: 2400 | D153: 2400 | F153: =Calculator!$M$2 -> 10 | G153: =Fjäderkurva!$D$14 -> 10 | H153: =Fjäderkurva!$D$19 -> 150 | I153: =Calculator!$X$19 -> 20 | J153: =Calculator!$X$20 -> 20 | K153: 77 | L153: 25 | M153: =-0.00000015*F153^2+0.000027*F153+0.0145 -> 0.014755 | N153: =0.88*(H153/150)+0.12 -> 1 | O153: =0.82*(G153/F153)^2+0.075*(G153/F153)+0.1 -> 0.995 | P153: =F153*I153*M153*N153*O153+J153 -> 22.936245 | Q153: 32.936245 | R153: 22.936245 | S153: 32.936245 | T153: 73.285241 | U153: 91.285241 | V153: 25 | W153: 47.936245 | X153: 57.936245 | Y153: 118.285241 | Z153: 136.285241 | AA153: 118.285241 | AB153: 136.285241 | AC153: 47.936245 | AD153: 57.936245 | AG153: 1 | AH153: Samma värden som TU 1500 | AN153: 41 | AO153: 51
A154: TX 4200 | C154: 4200 | D154: 4200 | F154: =Calculator!$M$2 -> 10 | G154: =Fjäderkurva!$D$14 -> 10 | H154: =Fjäderkurva!$D$19 -> 150 | I154: =Calculator!$X$19 -> 20 | J154: =Calculator!$X$20 -> 20 | K154: 77 | L154: 25 | M154: =0.00000005*F154^2-0.000034*F154+0.0186 -> 0.018265 | N154: =0.75*(H154/150)+0.25 -> 1 | O154: =0.82*(G154/F154)^2+0.075*(G154/F154)+0.1 -> 0.995 | P154: =F154*I154*M154*N154*O154+J154 -> 23.634735 | Q154: 33.634735 | R154: 23.634735 | S154: 33.634735 | T154: 74.542523 | U154: 92.542523 | V154: 25 | W154: 48.634735 | X154: 58.634735 | Y154: 119.542523 | Z154: 137.542523 | AA154: 119.542523 | AB154: 137.542523 | AC154: 48.634735 | AD154: 58.634735 | AG154: 1 | AH154: Samma värden som TU 3000 | AN154: 41 | AO154: 51
A155: TX 6600 | C155: 6600 | D155: 6600 | F155: =Calculator!$M$2 -> 10 | G155: =Fjäderkurva!$D$14 -> 10 | H155: =Fjäderkurva!$D$19 -> 150 | I155: =Calculator!$X$19 -> 20 | J155: =Calculator!$X$20 -> 20 | K155: 77 | L155: 25 | M155: =-0.000003*F155+0.0155 -> 0.01547 | N155: =0.89*(H155/150)+0.11 -> 1 | O155: =0.82*(G155/F155)^2+0.075*(G155/F155)+0.1 -> 0.995 | P155: =F155*I155*M155*N155*O155+J155 -> 23.07853 | Q155: 33.07853 | R155: 23.07853 | S155: 33.07853 | T155: 73.541354 | U155: 91.541354 | V155: 25 | W155: 48.07853 | X155: 58.07853 | Y155: 118.541354 | Z155: 136.541354 | AA155: 118.541354 | AB155: 136.541354 | AC155: 48.07853 | AD155: 58.07853 | AG155: 1 | AH155: Samma värden som TU 5000 | AN155: 40 | AO155: 50
A156: TX 9500 | C156: 9500 | D156: 9500 | F156: =Calculator!$M$2 -> 10 | G156: =Fjäderkurva!$D$14 -> 10 | H156: =Fjäderkurva!$D$19 -> 150 | I156: =Calculator!$X$19 -> 20 | J156: =Calculator!$X$20 -> 20 | K156: 77 | L156: 25 | M156: =-0.000018*F156+0.025 -> 0.02482 | N156: =0.85*(H156/150)+0.15 -> 1 | O156: =0.82*(G156/F156)^2+0.075*(G156/F156)+0.1 -> 0.995 | P156: =F156*I156*M156*N156*O156+J156 -> 24.93918 | Q156: 34.93918 | R156: 24.93918 | S156: 34.93918 | T156: 76.890524 | U156: 94.890524 | V156: 25 | W156: 49.93918 | X156: 59.93918 | Y156: 121.890524 | Z156: 139.890524 | AA156: 121.890524 | AB156: 139.890524 | AC156: 49.93918 | AD156: 59.93918 | AG156: 1 | AH156: Samma värden som TU 7500 | AN156: 48 | AO156: 58
A157: TX 20000 | C157: 20000 | D157: 20000 | F157: =Calculator!$M$2 -> 10 | G157: =Fjäderkurva!$D$14 -> 10 | H157: =Fjäderkurva!$D$19 -> 150 | I157: =Calculator!$X$19 -> 20 | J157: =Calculator!$X$20 -> 20 | K157: 77 | L157: 25 | M157: =-0.00000004*F157^2+0.000015*F157+0.0145 -> 0.014646 | N157: =0.9*(H157/150)+0.1 -> 1 | O157: =0.82*(G157/F157)^2+0.075*(G157/F157)+0.1 -> 0.995 | P157: =F157*I157*M157*N157*O157+J157 -> 22.914554 | Q157: 32.914554 | R157: 22.914554 | S157: 32.914554 | T157: 73.2461972 | U157: 91.2461972 | V157: 25 | W157: 47.914554 | X157: 57.914554 | Y157: 118.2461972 | Z157: 136.2461972 | AA157: 118.2461972 | AB157: 136.2461972 | AC157: 47.914554 | AD157: 57.914554 | AG157: 2 | AH157: Nya tester alt. samma som TU 10T | AN157: 41 | AO157: 51
D161: Kopia av X-data | F161: Strokelength | G161: Utilized | H161: Fill pressure | I161: Frequency | J161: Env./Tool | K161: Env./Tool | L161: Env./Tool | P161: Estimated running | R161: =P161 -> Estimated running | V161: F° env./tool | AB161: =P161 -> Estimated running | AG161: 1
D162: 2017-05-29 | G162: strokelength | J162: temperature | K162: temperature | L162: temperature | M162: Fjäderfaktor | N162: Tryckfaktor | O162: Slagfaktor | P162: temperature between: | R162: temperature between: | V162: temp. | AB162: =P162 -> temperature between: | AG162: 1
C163: Spring Size | D163: Spring Size | G163: [mm] | H163: [Bar] | I163: [spm] | J163: [°C] | K163: [°F] | L163: [°C] | M163: K1 | N163: Kp | O163: Ks | P163: [°C] | Q163: [°C] | R163: [°C] | S163: =Q163 -> [°C] | T163: P som [°F] | U163: Q som [°F] | V163: to C° | W163: N + T | X163: U + 10°C | Y163: U to F° | Z163: V to F° | AA163: [°F] | AB163: [°F] | AC163: [°C] | AD163: [°C] | AG163: 1
A164: =CONCATENATE("XF"," ",D164) -> XF 750 | C164: 750 | D164: 750 | F164: =Calculator!$M$2 -> 10 | G164: =Fjäderkurva!$D$14 -> 10 | H164: =Fjäderkurva!$D$19 -> 150 | I164: =Calculator!$X$19 -> 20 | J164: =Calculator!$X$20 -> 20 | K164: 77 | L164: =5/9*(K164-32) -> 25 | M164: =-5.21759415768633E-06*F164+0.011064444 -> 0.01101226806 | N164: =0.7*(H164/150)+0.3 -> 1 | O164: =(G164/F164)^1.15 -> 1 | P164: =F164*I164*M164*N164*O164+J164 -> 22.20245361 | Q164: =P164+10 -> 32.20245361 | R164: 22.20245361 | S164: 32.20245361 | T164: =9/5*R164+32 -> 71.9644165 | U164: =9/5*S164+32 -> 89.9644165 | V164: =5/9*(K164-32) -> 25 | W164: =P164+V164 -> 47.20245361 | X164: =W164+10 -> 57.20245361 | Y164: =9/5*W164+32 -> 116.9644165 | Z164: =9/5*X164+32 -> 134.9644165 | AA164: =Y164 -> 116.9644165 | AB164: =Z164 -> 134.9644165 | AC164: =5/9*(AA164-32) -> 47.20245361 | AD164: =5/9*(AB164-32) -> 57.20245361 | AE164: =IF(Q164>80,"High temp. Please contact your distributor for advice",IF(H164>150,"Too high charging pressure!","")) ->  | AF164: =AE164 ->  | AG164: 1 | AH164: Samma värden som idag | AN164: 34 | AO164: 44
A165: XF 1000 | C165: 1000 | D165: 1000 | F165: =Calculator!$M$2 -> 10 | G165: =Fjäderkurva!$D$14 -> 10 | H165: =Fjäderkurva!$D$19 -> 150 | I165: =Calculator!$X$19 -> 20 | J165: =Calculator!$X$20 -> 20 | K165: 77 | L165: 25 | M165: =-3.37582158982632E-06*F165+0.012213964 -> 0.01218020578 | N165: =0.79*(H165/150)+0.21 -> 1 | O165: 1 | P165: 22.43604116 | Q165: 32.43604116 | R165: 22.43604116 | S165: 32.43604116 | T165: 72.38487408 | U165: 90.38487408 | V165: 25 | W165: 47.43604116 | X165: 57.43604116 | Y165: 117.3848741 | Z165: 135.3848741 | AA165: 117.3848741 | AB165: 135.3848741 | AC165: 47.43604116 | AD165: 57.43604116 | AG165: 1 | AH165: Samma värden som idag | AN165: 36 | AO165: 46
A166: XF 1500 | C166: 1500 | D166: 1500 | F166: =Calculator!$M$2 -> 10 | G166: =Fjäderkurva!$D$14 -> 10 | H166: =Fjäderkurva!$D$19 -> 150 | I166: =Calculator!$X$19 -> 20 | J166: =Calculator!$X$20 -> 20 | K166: 77 | L166: 25 | M166: =-0.0000115814333465656*F166+0.0161709 -> 0.01605508567 | N166: =0.84*(H166/150)+0.16 -> 1 | O166: 1 | P166: 23.21101713 | Q166: 33.21101713 | R166: 23.21101713 | S166: 33.21101713 | T166: 73.77983084 | U166: 91.77983084 | V166: 25 | W166: 48.21101713 | X166: 58.21101713 | Y166: 118.7798308 | Z166: 136.7798308 | AA166: 118.7798308 | AB166: 136.7798308 | AC166: 48.21101713 | AD166: 58.21101713 | AG166: 1 | AH166: Samma värden som idag | AN166: 38 | AO166: 48
A167: XF 2400 | C167: 2400 | D167: 2400 | F167: =Calculator!$M$2 -> 10 | G167: =Fjäderkurva!$D$14 -> 10 | H167: =Fjäderkurva!$D$19 -> 150 | I167: =Calculator!$X$19 -> 20 | J167: =Calculator!$X$20 -> 20 | K167: 77 | L167: 25 | M167: 0.01582 | N167: =0.87*(H167/150)+0.13 -> 1 | O167: 1 | P167: 23.164 | Q167: 33.164 | R167: 23.164 | S167: 33.164 | T167: 73.6952 | U167: 91.6952 | V167: 25 | W167: 48.164 | X167: 58.164 | Y167: 118.6952 | Z167: 136.6952 | AA167: 118.6952 | AB167: 136.6952 | AC167: 48.164 | AD167: 58.164 | AG167: 1 | AH167: Samma värden som idag | AN167: 39 | AO167: 49
